Workbook

Sheet Control Entry
A1: Brevet Length: | B1: 1000 | C1: =IF(Brevet_Length>=1200,Brevet_Length,IF(Brevet_Length>=1000,1000,IF(Brevet_Length>=600,600,IF(Brevet_Length>=400,400,IF(Brevet_Length>=300,300,IF(Brevet_Length>=200,200,100)))))) -> 1000 | E1: VI Eureka
A2: Maximum Time: | B2: =IF(brevet>=1200,90,IF(brevet>=1000,75,IF(brevet>=600,40,IF(brevet>=400,27,IF(brevet>=300,20,IF(brevet>=200,13.5,IF(brevet>=100,7,0))))))) -> 75
A3: Brevet Description: | B3: Victoria - Gold River - Port Alberni - Cowichan Lake - Sidney - Victoria
A4: Brevet Number: | B4: VI1000B
A5: Start Date: | B5: 2014-06-14
A6: Start Time: | B6: 03:00:00
D7: Control
D9: Distance | E9: Locale | F9: Establishment 1 | G9: Establishment 2 | H9: Establishment 3 | I9: Open | J9: Close | K9: Open time | L9: Close time
C10: Control 1 | D10: 0 | E10: VICTORIA | F10: Tim Horton's | G10: 3501 Ravine Way @ | H10: Blanshard | I10: =Start_date+Start_time -> 2014-06-14T03:00:00 | J10: =I10+"1:00" -> 2014-06-14T04:00:00 | K10: =IF(ISBLANK(Distance),"",Open Control_1) -> 2014-06-14T03:00:00 | L10: =IF(ISBLANK(Distance),"",Close Control_1) -> 2014-06-14T04:00:00
C11: Control 2 | D11: 87.2 | E11: CHEMAINUS | F11: SUBWAY on right | G11: or your choice | H11: opens at what time? | I11: =IF(ISBLANK(Distance),"",IF(Distance>1000,(Distance-1000)/26+33.0847,(IF(Distance>600,(Distance-600)/28+18.799,(IF(Distance>400,(Distance-400)/30+12.1324,(IF(Distance>200,(Distance-200)/32+5.8824,Distance/34)))))))) -> 2.564705882 | J11: =IF(ISBLANK(Distance),"",IF(Distance>=brevet,IF(brevet>1200,(brevet-1200)*75/1000+90,Max_time),IF(Distance>1200,(Distance-1200)*75/1000+90,IF(Distance>1000,(Distance-1000)/(1000/75)+75,IF(Distance>600,(Distance-600)/(400/35)+40,Distance/15))))) -> 5.813333333 | K11: =IF(ISBLANK(Distance),"",Open_time Control_1+(INT(Open)&":"&IF(ROUND(((Open-INT(Open))*60),0)<10,0,"")&ROUND(((Open-INT(Open))*60),0))) -> 2014-06-14T05:34:00 | L11: =IF(ISBLANK(Distance),"",Open_time Control_1+(INT(Close)&":"&IF(ROUND(((Close-INT(Close))*60),0)<10,0,"")&ROUND(((Close-INT(Close))*60),0))) -> 2014-06-14T08:49:00
C12: Control 3 | D12: 115.2 | E12: CEDAR | F12: Street no. | G12: of | H12: Wheatsheaf Pub? | I12: =IF(ISBLANK(Distance),"",IF(Distance>1000,(Distance-1000)/26+33.0847,(IF(Distance>600,(Distance-600)/28+18.799,(IF(Distance>400,(Distance-400)/30+12.1324,(IF(Distance>200,(Distance-200)/32+5.8824,Distance/34)))))))) -> 3.388235294 | J12: =IF(ISBLANK(Distance),"",IF(Distance>=brevet,IF(brevet>1200,(brevet-1200)*75/1000+90,Max_time),IF(Distance>1200,(Distance-1200)*75/1000+90,IF(Distance>1000,(Distance-1000)/(1000/75)+75,IF(Distance>600,(Distance-600)/(400/35)+40,Distance/15))))) -> 7.68 | K12: =IF(ISBLANK(Distance),"",Open_time Control_1+(INT(Open)&":"&IF(ROUND(((Open-INT(Open))*60),0)<10,0,"")&ROUND(((Open-INT(Open))*60),0))) -> 2014-06-14T06:23:00 | L12: =IF(ISBLANK(Distance),"",Open_time Control_1+(INT(Close)&":"&IF(ROUND(((Close-INT(Close))*60),0)<10,0,"")&ROUND(((Close-INT(Close))*60),0))) -> 2014-06-14T10:41:00
C13: Control 4 | D13: 141.7 | E13: DOVER BAY | F13: Mohawk Gas Station | G13: Dover @ Blueback | I13: =IF(ISBLANK(Distance),"",IF(Distance>1000,(Distance-1000)/26+33.0847,(IF(Distance>600,(Distance-600)/28+18.799,(IF(Distance>400,(Distance-400)/30+12.1324,(IF(Distance>200,(Distance-200)/32+5.8824,Distance/34)))))))) -> 4.167647059 | J13: 9.446666667 | K13: =IF(ISBLANK(Distance),"",Open_time Control_1+(INT(Open)&":"&IF(ROUND(((Open-INT(Open))*60),0)<10,0,"")&ROUND(((Open-INT(Open))*60),0))) -> 2014-06-14T07:10:00 | L13: =IF(ISBLANK(Distance),"",Open_time Control_1+(INT(Close)&":"&IF(ROUND(((Close-INT(Close))*60),0)<10,0,"")&ROUND(((Close-INT(Close))*60),0))) -> 2014-06-14T12:27:00
C14: Control 5 | D14: 245.4 | E14: COMOX | F14: Your choice | I14: 7.30115 | J14: 16.36 | K14: =IF(ISBLANK(Distance),"",Open_time Control_1+(INT(Open)&":"&IF(ROUND(((Open-INT(Open))*60),0)<10,0,"")&ROUND(((Open-INT(Open))*60),0))) -> 2014-06-14T10:18:00 | L14: =IF(ISBLANK(Distance),"",Open_time Control_1+(INT(Close)&":"&IF(ROUND(((Close-INT(Close))*60),0)<10,0,"")&ROUND(((Close-INT(Close))*60),0))) -> 2014-06-14T19:22:00
C15: Control 6 | D15: 307.3 | E15: CAMPBELL RIVER | G15: Mohawk Gas Station | I15: 9.235525 | J15: 20.48666667 | K15: =IF(ISBLANK(Distance),"",Open_time Control_1+(INT(Open)&":"&IF(ROUND(((Open-INT(Open))*60),0)<10,0,"")&ROUND(((Open-INT(Open))*60),0))) -> 2014-06-14T12:14:00 | L15: =IF(ISBLANK(Distance),"",Open_time Control_1+(INT(Close)&":"&IF(ROUND(((Close-INT(Close))*60),0)<10,0,"")&ROUND(((Close-INT(Close))*60),0))) -> 2014-06-14T23:29:00
C16: Control 7 | D16: 396 | E16: GOLD RIVER | F16: GOLD RIVER | G16: CHALET PARKING | H16: How many flagpoles? | I16: 12.0074 | J16: 26.4 | K16: =IF(ISBLANK(Distance),"",Open_time Control_1+(INT(Open)&":"&IF(ROUND(((Open-INT(Open))*60),0)<10,0,"")&ROUND(((Open-INT(Open))*60),0))) -> 2014-06-14T15:00:00 | L16: =IF(ISBLANK(Distance),"",Open_time Control_1+(INT(Close)&":"&IF(ROUND(((Close-INT(Close))*60),0)<10,0,"")&ROUND(((Close-INT(Close))*60),0))) -> 2014-06-15T05:24:00
C17: Control 8 | D17: 484.5 | E17: CAMPBELL RIVER | G17: Mohawk Gas Station | I17: 14.94906667 | J17: 32.3 | K17: =IF(ISBLANK(Distance),"",Open_time Control_1+(INT(Open)&":"&IF(ROUND(((Open-INT(Open))*60),0)<10,0,"")&ROUND(((Open-INT(Open))*60),0))) -> 2014-06-14T17:57:00 | L17: =IF(ISBLANK(Distance),"",Open_time Control_1+(INT(Close)&":"&IF(ROUND(((Close-INT(Close))*60),0)<10,0,"")&ROUND(((Close-INT(Close))*60),0))) -> 2014-06-15T11:18:00
C18: Control 9 | D18: 543 | E18: COMOX | F18: Your choice | H18: Name of Mall? | I18: 16.89906667 | J18: 36.2 | K18: =IF(ISBLANK(Distance),"",Open_time Control_1+(INT(Open)&":"&IF(ROUND(((Open-INT(Open))*60),0)<10,0,"")&ROUND(((Open-INT(Open))*60),0))) -> 2014-06-14T19:54:00 | L18: =IF(ISBLANK(Distance),"",Open_time Control_1+(INT(Close)&":"&IF(ROUND(((Close-INT(Close))*60),0)<10,0,"")&ROUND(((Close-INT(Close))*60),0))) -> 2014-06-15T15:12:00
C19: Control 10 | D19: 557.2 | E19: CUMBERLAND | F19: Name of Service Station? | G19: (Bevan & Cumberland Rds) | I19: 17.3724 | J19: 37.14666667 | K19: =IF(ISBLANK(Distance),"",Open_time Control_1+(INT(Open)&":"&IF(ROUND(((Open-INT(Open))*60),0)<10,0,"")&ROUND(((Open-INT(Open))*60),0))) -> 2014-06-14T20:22:00 | L19: =IF(ISBLANK(Distance),"",Open_time Control_1+(INT(Close)&":"&IF(ROUND(((Close-INT(Close))*60),0)<10,0,"")&ROUND(((Close-INT(Close))*60),0))) -> 2014-06-15T16:09:00
C20: Control 11 | D20: 662.9 | E20: PORT ALBERNI | F20: 7-11 Convenience Store | I20: 21.04542857 | J20: 45.50375 | K20: =IF(ISBLANK(Distance),"",Open_time Control_1+(INT(Open)&":"&IF(ROUND(((Open-INT(Open))*60),0)<10,0,"")&ROUND(((Open-INT(Open))*60),0))) -> 2014-06-15T00:03:00 | L20: =IF(ISBLANK(Distance),"",Open_time Control_1+(INT(Close)&":"&IF(ROUND(((Close-INT(Close))*60),0)<10,0,"")&ROUND(((Close-INT(Close))*60),0))) -> 2014-06-16T00:30:00
C21: Control 12 | D21: 765.7 | E21: NANAIMO | F21: Mohawk Gas Station | I21: 24.71685714 | J21: 54.49875 | K21: =IF(ISBLANK(Distance),"",Open_time Control_1+(INT(Open)&":"&IF(ROUND(((Open-INT(Open))*60),0)<10,0,"")&ROUND(((Open-INT(Open))*60),0))) -> 2014-06-15T03:43:00 | L21: =IF(ISBLANK(Distance),"",Open_time Control_1+(INT(Close)&":"&IF(ROUND(((Close-INT(Close))*60),0)<10,0,"")&ROUND(((Close-INT(Close))*60),0))) -> 2014-06-16T09:30:00
C22: Control 13 | D22: 841 | E22: LAKE COWICHAN | F22: ESSO STATION | G22: @ MacDONALD | H22: # of gas pumps? | I22: 27.40614286 | J22: 61.0875 | K22: =IF(ISBLANK(Distance),"",Open_time Control_1+(INT(Open)&":"&IF(ROUND(((Open-INT(Open))*60),0)<10,0,"")&ROUND(((Open-INT(Open))*60),0))) -> 2014-06-15T06:24:00 | L22: =IF(ISBLANK(Distance),"",Open_time Control_1+(INT(Close)&":"&IF(ROUND(((Close-INT(Close))*60),0)<10,0,"")&ROUND(((Close-INT(Close))*60),0))) -> 2014-06-16T16:05:00
C23: Control 14 | D23: 923.7 | E23: SHAWNIGAN | F23: Your choice | G23: Name of General Store? | I23: 30.35971429 | J23: 68.32375 | K23: =IF(ISBLANK(Distance),"",Open_time Control_1+(INT(Open)&":"&IF(ROUND(((Open-INT(Open))*60),0)<10,0,"")&ROUND(((Open-INT(Open))*60),0))) -> 2014-06-15T09:22:00 | L23: =IF(ISBLANK(Distance),"",Open_time Control_1+(INT(Close)&":"&IF(ROUND(((Close-INT(Close))*60),0)<10,0,"")&ROUND(((Close-INT(Close))*60),0))) -> 2014-06-16T23:19:00
C24: Control 15 | D24: 955.6 | E24: MILLSTREAM | F24: CO-OP GAS STATION | G24: Signature or | H24: Opens at what time? | I24: 31.499 | J24: 71.115 | K24: =IF(ISBLANK(Distance),"",Open_time Control_1+(INT(Open)&":"&IF(ROUND(((Open-INT(Open))*60),0)<10,0,"")&ROUND(((Open-INT(Open))*60),0))) -> 2014-06-15T10:30:00 | L24: =IF(ISBLANK(Distance),"",Open_time Control_1+(INT(Close)&":"&IF(ROUND(((Close-INT(Close))*60),0)<10,0,"")&ROUND(((Close-INT(Close))*60),0))) -> 2014-06-17T02:07:00
C25: Control 16 | D25: 988 | E25: SIDNEY | F25: 7-11 CONVENIENCE STORE | I25: 32.65614286 | J25: 73.95 | K25: =IF(ISBLANK(Distance),"",Open_time Control_1+(INT(Open)&":"&IF(ROUND(((Open-INT(Open))*60),0)<10,0,"")&ROUND(((Open-INT(Open))*60),0))) -> 2014-06-15T11:39:00 | L25: =IF(ISBLANK(Distance),"",Open_time Control_1+(INT(Close)&":"&IF(ROUND(((Close-INT(Close))*60),0)<10,0,"")&ROUND(((Close-INT(Close))*60),0))) -> 2014-06-17T04:57:00
C26: Control 17 | D26: 1007.2 | E26: VICTORIA | F26: TIM HORTON’S or McDonald's | G26: 110-4440 West Saanich Rd. | H26: ROYAL OAK PLAZA, Saanich | I26: 33.36162308 | J26: 75 | K26: =IF(ISBLANK(Distance),"",Open_time Control_1+(INT(Open)&":"&IF(ROUND(((Open-INT(Open))*60),0)<10,0,"")&ROUND(((Open-INT(Open))*60),0))) -> 2014-06-15T12:22:00 | L26: =IF(ISBLANK(Distance),"",Open_time Control_1+(INT(Close)&":"&IF(ROUND(((Close-INT(Close))*60),0)<10,0,"")&ROUND(((Close-INT(Close))*60),0))) -> 2014-06-17T06:00:00
C27: Control 18 | K27: =IF(ISBLANK(Distance),"",Open_time Control_1+(INT(Open)&":"&IF(ROUND(((Open-INT(Open))*60),0)<10,0,"")&ROUND(((Open-INT(Open))*60),0))) ->  | L27: =IF(ISBLANK(Distance),"",Open_time Control_1+(INT(Close)&":"&IF(ROUND(((Close-INT(Close))*60),0)<10,0,"")&ROUND(((Close-INT(Close))*60),0))) -> 
C28: Control 19 | E28: SECRET | J28: =IF(ISBLANK(Distance),"",IF(Distance>=brevet,IF(brevet>1200,(brevet-1200)*75/1000+90,Max_time),IF(Distance>1200,(Distance-1200)*75/1000+90,IF(Distance>1000,(Distance-1000)/(1000/75)+75,IF(Distance>600,(Distance-600)/(400/35)+40,Distance/15))))) ->  | K28: =IF(ISBLANK(Distance),"",Open_time Control_1+(INT(Open)&":"&IF(ROUND(((Open-INT(Open))*60),0)<10,0,"")&ROUND(((Open-INT(Open))*60),0))) ->  | L28: =IF(ISBLANK(Distance),"",Open_time Control_1+(INT(Close)&":"&IF(ROUND(((Close-INT(Close))*60),0)<10,0,"")&ROUND(((Close-INT(Close))*60),0))) -> 
C29: Control 20 | E29: SECRET | I29: =IF(ISBLANK(Distance),"",IF(Distance>1000,(Distance-1000)/26+33.0847,(IF(Distance>600,(Distance-600)/28+18.799,(IF(Distance>400,(Distance-400)/30+12.1324,(IF(Distance>200,(Distance-200)/32+5.8824,Distance/34)))))))) ->  | J29: =IF(ISBLANK(Distance),"",IF(Distance>=brevet,IF(brevet>1200,(brevet-1200)*75/1000+90,Max_time),IF(Distance>1200,(Distance-1200)*75/1000+90,IF(Distance>1000,(Distance-1000)/(1000/75)+75,IF(Distance>600,(Distance-600)/(400/35)+40,Distance/15))))) ->  | K29: =IF(ISBLANK(Distance),"",Open_time Control_1+(INT(Open)&":"&IF(ROUND(((Open-INT(Open))*60),0)<10,0,"")&ROUND(((Open-INT(Open))*60),0))) ->  | L29: =IF(ISBLANK(Distance),"",Open_time Control_1+(INT(Close)&":"&IF(ROUND(((Close-INT(Close))*60),0)<10,0,"")&ROUND(((Close-INT(Close))*60),0))) -> 

Sheet Control Sheet
A1: We thank you for verifying the passage of the Randonneur | H1: |
A2: DIST (km) | B2: Open | C2: Close | D2: Locale | E2: Establishment | F2: Signature | G2: Time of Passage | H2: |
B3: =Control_1 Open_time -> 2014-06-14T03:00:00 | C3: =Control_1 Close_time -> 2014-06-14T04:00:00 | E3: =IF(ISBLANK(Control_1 Establishment_1),"",Control_1 Establishment_1) -> Tim Horton's | H3: |
A4: =IF(ISBLANK(Distance Control_1),"",Control_1 Distance) -> 0 | B4: =Control_1 Open_time -> 41804.125 | C4: =Control_1 Close_time -> 41804.16667 | D4: =IF(ISBLANK(Locale Control_1),"",Locale Control_1) -> VICTORIA | E4: =IF(ISBLANK(Control_1 Establishment_2),"",Control_1 Establishment_2) -> 3501 Ravine Way @ | H4: |
B5: =Control_1 Open_time -> 2014-06-14T03:00:00 | C5: =Control_1 Close_time -> 2014-06-14T04:00:00 | E5: =IF(ISBLANK(Control_1 Establishment_3),"",Control_1 Establishment_3) -> Blanshard | H5: |
B6: =Control_2 Open_time -> 2014-06-14T05:34:00 | C6: =Control_2 Close_time -> 2014-06-14T08:49:00 | E6: =IF(ISBLANK(Control_2 Establishment_1),"",Control_2 Establishment_1) -> SUBWAY on right | H6: |
A7: =IF(ISBLANK(Distance Control_2),"",Control_2 Distance) -> 87.2 | B7: =Control_2 Open_time -> 41804.23194 | C7: =Control_2 Close_time -> 41804.36736 | D7: =IF(ISBLANK(Locale Control_2),"",Locale Control_2) -> CHEMAINUS | E7: =IF(ISBLANK(Control_2 Establishment_2),"",Control_2 Establishment_2) -> or your choice | H7: |
B8: =Control_2 Open_time -> 2014-06-14T05:34:00 | C8: =Control_2 Close_time -> 2014-06-14T08:49:00 | E8: =IF(ISBLANK(Control_2 Establishment_3),"",Control_2 Establishment_3) -> opens at what time? | H8: | | J8: Control Card #2
B9: =Control_3 Open_time -> 2014-06-14T06:23:00 | C9: =Control_3 Close_time -> 2014-06-14T10:41:00 | E9: =IF(ISBLANK(Control_3 Establishment_1),"",Control_3 Establishment_1) -> Street no. | H9: | | J9: =IF(ISBLANK(brevet),"",brevet_nickname&" "&brevet&" km Randonnée") -> VI Eureka 1000 km Randonnée
A10: =IF(ISBLANK(Distance Control_3),"",Control_3 Distance) -> 115.2 | B10: =Control_3 Open_time -> 41804.26597 | C10: =Control_3 Close_time -> 41804.44514 | D10: =IF(ISBLANK(Locale Control_3),"",Locale Control_3) -> CEDAR | E10: =IF(ISBLANK(Control_3 Establishment_2),"",Control_3 Establishment_2) -> of | H10: | | J10: =IF(ISBLANK(Brevet_Description),"",Brevet_Description) -> Victoria - Gold River - Port Alberni - Cowichan Lake - Sidney - Victoria
B11: =Control_3 Open_time -> 2014-06-14T06:23:00 | C11: =Control_3 Close_time -> 2014-06-14T10:41:00 | E11: =IF(ISBLANK(Control_3 Establishment_3),"",Control_3 Establishment_3) -> Wheatsheaf Pub? | H11: |
B12: =Control_4 Open_time -> 2014-06-14T07:10:00 | C12: =Control_4 Close_time -> 2014-06-14T12:27:00 | E12: =IF(ISBLANK(Control_4 Establishment_1),"",Control_4 Establishment_1) -> Mohawk Gas Station | H12: | | J12: Name | L12: =IF(ISBLANK(Surname),"",First_Name&" "&Initial&" "&Surname) -> 
A13: =IF(ISBLANK(Distance Control_4),"",Control_4 Distance) -> 141.7 | B13: =Control_4 Open_time -> 41804.29861 | C13: =Control_4 Close_time -> 41804.51875 | D13: =IF(ISBLANK(Locale Control_4),"",Locale Control_4) -> DOVER BAY | E13: =IF(ISBLANK(Control_4 Establishment_2),"",Control_4 Establishment_2) -> Dover @ Blueback | H13: | | J13: Address | L13: =IF(ISBLANK(Address_1),"",Address_1) -> 
B14: =Control_4 Open_time -> 2014-06-14T07:10:00 | C14: =Control_4 Close_time -> 2014-06-14T12:27:00 | E14: =IF(ISBLANK(Control_4 Establishment_3),"",Control_4 Establishment_3) ->  | H14: | | L14: =IF(ISBLANK(Address_2),"",Address_2) -> 
B15: =Control_5 Open_time -> 2014-06-14T10:18:00 | C15: =Control_5 Close_time -> 2014-06-14T19:22:00 | E15: =IF(ISBLANK(Control_5 Establishment_1),"",Control_5 Establishment_1) -> Your choice | H15: | | J15: City | L15: =IF(ISBLANK(City),"",City) ->  | P15: Province/State | S15: =IF(ISBLANK(Province_State),"",Province_State) -> 
A16: =IF(ISBLANK(Distance Control_5),"",Control_5 Distance) -> 245.4 | B16: =Control_5 Open_time -> 41804.42917 | C16: =Control_5 Close_time -> 41804.80694 | D16: =IF(ISBLANK(Locale Control_5),"",Locale Control_5) -> COMOX | E16: =IF(ISBLANK(Control_5 Establishment_2),"",Control_5 Establishment_2) ->  | H16: | | J16: Country | L16: =IF(ISBLANK(Country),"",Country) ->  | P16: Postal Code | S16: =IF(ISBLANK(Postal_Code),"",Postal_Code) -> 
B17: =Control_5 Open_time -> 2014-06-14T10:18:00 | C17: =Control_5 Close_time -> 2014-06-14T19:22:00 | E17: =IF(ISBLANK(Control_5 Establishment_3),"",Control_5 Establishment_3) ->  | H17: |
B18: =Control_6 Open_time -> 2014-06-14T12:14:00 | C18: =Control_6 Close_time -> 2014-06-14T23:29:00 | E18: =IF(ISBLANK(Control_6 Establishment_1),"",Control_6 Establishment_1) ->  | H18: | | J18: Telephone | L18: =IF(ISBLANK(Home_telephone),"",Home_telephone) ->  | P18: email | Q18: =IF(ISBLANK(email),"",email) -> 
A19: =IF(ISBLANK(Distance Control_6),"",Control_6 Distance) -> 307.3 | B19: =Control_6 Open_time -> 41804.50972 | C19: =Control_6 Close_time -> 41804.97847 | D19: =IF(ISBLANK(Locale Control_6),"",Locale Control_6) -> CAMPBELL RIVER | E19: =IF(ISBLANK(Control_6 Establishment_2),"",Control_6 Establishment_2) -> Mohawk Gas Station | H19: |
B20: =Control_6 Open_time -> 2014-06-14T12:14:00 | C20: =Control_6 Close_time -> 2014-06-14T23:29:00 | E20: =IF(ISBLANK(Control_6 Establishment_3),"",Control_6 Establishment_3) ->  | H20: | | J20: Under the sanction of Cycling BC
B21: =Control_7 Open_time -> 2014-06-14T15:00:00 | C21: =Control_7 Close_time -> 2014-06-15T05:24:00 | E21: =IF(ISBLANK(Control_7 Establishment_1),"",Control_7 Establishment_1) -> GOLD RIVER | H21: | | J21: Founding member of LES RANDONNEURS MONDIAUX (1983)
A22: =IF(ISBLANK(Distance Control_7),"",Control_7 Distance) -> 396 | B22: =Control_7 Open_time -> 41804.625 | C22: =Control_7 Close_time -> 41805.225 | D22: =IF(ISBLANK(Locale Control_7),"",Locale Control_7) -> GOLD RIVER | E22: =IF(ISBLANK(Control_7 Establishment_2),"",Control_7 Establishment_2) -> CHALET PARKING | H22: |
B23: =Control_7 Open_time -> 2014-06-14T15:00:00 | C23: =Control_7 Close_time -> 2014-06-15T05:24:00 | E23: =IF(ISBLANK(Control_7 Establishment_3),"",Control_7 Establishment_3) -> How many flagpoles? | H23: | | J23: Each Randonneur must carry a Control Card, have it signed at the control between the opening and closing times, and return it to the organizer.
B24: =Control_8 Open_time -> 2014-06-14T17:57:00 | C24: =Control_8 Close_time -> 2014-06-15T11:18:00 | E24: =IF(ISBLANK(Control_8 Establishment_1),"",Control_8 Establishment_1) ->  | H24: | | J24: Date | K24: =IF(ISBLANK(Start_date),"",Start_date) -> 2014-06-14 | O24: Start time
A25: =IF(ISBLANK(Distance Control_8),"",Control_8 Distance) -> 484.5 | B25: =Control_8 Open_time -> 41804.74792 | C25: =Control_8 Close_time -> 41805.47083 | D25: =IF(ISBLANK(Locale Control_8),"",Locale Control_8) -> CAMPBELL RIVER | E25: =IF(ISBLANK(Control_8 Establishment_2),"",Control_8 Establishment_2) -> Mohawk Gas Station | H25: | | O25: Finish time
B26: =Control_8 Open_time -> 2014-06-14T17:57:00 | C26: =Control_8 Close_time -> 2014-06-15T11:18:00 | E26: =IF(ISBLANK(Control_8 Establishment_3),"",Control_8 Establishment_3) ->  | H26: | | O26: Elapsed time
B27: =Control_9 Open_time -> 2014-06-14T19:54:00 | C27: =Control_9 Close_time -> 2014-06-15T15:12:00 | E27: =IF(ISBLANK(Control_9 Establishment_1),"",Control_9 Establishment_1) -> Your choice | H27: | | J27: Rider's signature at completion
A28: =IF(ISBLANK(Distance Control_9),"",Control_9 Distance) -> 543 | B28: =Control_9 Open_time -> 41804.82917 | C28: =Control_9 Close_time -> 41805.63333 | D28: =IF(ISBLANK(Locale Control_9),"",Locale Control_9) -> COMOX | E28: =IF(ISBLANK(Control_9 Establishment_2),"",Control_9 Establishment_2) ->  | H28: | | L28: Randonneur Committee Authorization
B29: =Control_9 Open_time -> 2014-06-14T19:54:00 | C29: =Control_9 Close_time -> 2014-06-15T15:12:00 | E29: =IF(ISBLANK(Control_9 Establishment_3),"",Control_9 Establishment_3) -> Name of Mall? | H29: |
B30: =Control_10 Open_time -> 2014-06-14T20:22:00 | C30: =Control_10 Close_time -> 2014-06-15T16:09:00 | E30: =IF(ISBLANK(Control_10 Establishment_1),"",Control_10 Establishment_1) -> Name of Service Station? | H30: | | S30: msg (250) 598-4135
A31: =IF(ISBLANK(Distance Control_10),"",Control_10 Distance) -> 557.2 | B31: =Control_10 Open_time -> 41804.84861 | C31: =Control_10 Close_time -> 41805.67292 | D31: =IF(ISBLANK(Locale Control_10),"",Locale Control_10) -> CUMBERLAND | E31: =IF(ISBLANK(Control_10 Establishment_2),"",Control_10 Establishment_2) -> (Bevan & Cumberland Rds) | H31: |
B32: =Control_10 Open_time -> 2014-06-14T20:22:00 | C32: =Control_10 Close_time -> 2014-06-15T16:09:00 | E32: =IF(ISBLANK(Control_10 Establishment_3),"",Control_10 Establishment_3) ->  | H32: | | L32: Brevet No. | N32: =IF(ISBLANK(Brevet_Number),"",Brevet_Number) -> VI1000B
B35: =Control_11 Open_time -> 2014-06-15T00:03:00 | C35: =Control_11 Close_time -> 2014-06-16T00:30:00 | E35: =IF(ISBLANK(Control_11 Establishment_1),"",Control_11 Establishment_1) -> 7-11 Convenience Store | H35: |
A36: =IF(ISBLANK(Distance Control_11),"",Control_11 Distance) -> 662.9 | B36: =Control_11 Open_time -> 41805.00208 | C36: =Control_11 Close_time -> 41806.02083 | D36: =IF(ISBLANK(Locale Control_11),"",Locale Control_11) -> PORT ALBERNI | E36: =IF(ISBLANK(Control_11 Establishment_2),"",Control_11 Establishment_2) ->  | H36: |
B37: =Control_11 Open_time -> 2014-06-15T00:03:00 | C37: =Control_11 Close_time -> 2014-06-16T00:30:00 | E37: =IF(ISBLANK(Control_11 Establishment_3),"",Control_11 Establishment_3) ->  | H37: |
B38: =Control_12 Open_time -> 2014-06-15T03:43:00 | C38: =Control_12 Close_time -> 2014-06-16T09:30:00 | E38: =IF(ISBLANK(Control_12 Establishment_1),"",Control_12 Establishment_1) -> Mohawk Gas Station | H38: |
A39: =IF(ISBLANK(Distance Control_12),"",Control_12 Distance) -> 765.7 | B39: =Control_12 Open_time -> 41805.15486 | C39: =Control_12 Close_time -> 41806.39583 | D39: =IF(ISBLANK(Locale Control_12),"",Locale Control_12) -> NANAIMO | E39: =IF(ISBLANK(Control_12 Establishment_2),"",Control_12 Establishment_2) ->  | H39: |
B40: =Control_12 Open_time -> 2014-06-15T03:43:00 | C40: =Control_12 Close_time -> 2014-06-16T09:30:00 | E40: =IF(ISBLANK(Control_12 Establishment_3),"",Control_12 Establishment_3) ->  | H40: | | J40: Control Card #1
B41: =Control_13 Open_time -> 2014-06-15T06:24:00 | C41: =Control_13 Close_time -> 2014-06-16T16:05:00 | E41: =IF(ISBLANK(Control_13 Establishment_1),"",Control_13 Establishment_1) -> ESSO STATION | H41: | | J41: =IF(ISBLANK(brevet),"",brevet_nickname&" "&brevet&" km Randonnée") -> VI Eureka 1000 km Randonnée
A42: =IF(ISBLANK(Distance Control_13),"",Control_13 Distance) -> 841 | B42: =Control_13 Open_time -> 41805.26667 | C42: =Control_13 Close_time -> 41806.67014 | D42: =IF(ISBLANK(Locale Control_13),"",Locale Control_13) -> LAKE COWICHAN | E42: =IF(ISBLANK(Control_13 Establishment_2),"",Control_13 Establishment_2) -> @ MacDONALD | H42: | | J42: =IF(ISBLANK(Brevet_Description),"",Brevet_Description) -> Victoria - Gold River - Port Alberni - Cowichan Lake - Sidney - Victoria
B43: =Control_13 Open_time -> 2014-06-15T06:24:00 | C43: =Control_13 Close_time -> 2014-06-16T16:05:00 | E43: =IF(ISBLANK(Control_13 Establishment_3),"",Control_13 Establishment_3) -> # of gas pumps? | H43: |
B44: =Control_14 Open_time -> 2014-06-15T09:22:00 | C44: =Control_14 Close_time -> 2014-06-16T23:19:00 | E44: =IF(ISBLANK(Control_14 Establishment_1),"",Control_14 Establishment_1) -> Your choice | H44: | | J44: Name | L44: =IF(ISBLANK(Surname),"",First_Name&" "&Initial&" "&Surname) -> 
A45: =IF(ISBLANK(Distance Control_14),"",Control_14 Distance) -> 923.7 | B45: =Control_14 Open_time -> 41805.39028 | C45: =Control_14 Close_time -> 41806.97153 | D45: =IF(ISBLANK(Locale Control_14),"",Locale Control_14) -> SHAWNIGAN | E45: =IF(ISBLANK(Control_14 Establishment_2),"",Control_14 Establishment_2) -> Name of General Store? | H45: | | J45: Address | L45: =IF(ISBLANK(Address_1),"",Address_1) -> 
B46: =Control_14 Open_time -> 2014-06-15T09:22:00 | C46: =Control_14 Close_time -> 2014-06-16T23:19:00 | E46: =IF(ISBLANK(Control_14 Establishment_3),"",Control_14 Establishment_3) ->  | H46: | | L46: =IF(ISBLANK(Address_2),"",Address_2) -> 
B47: =Control_15 Open_time -> 2014-06-15T10:30:00 | C47: =Control_15 Close_time -> 2014-06-17T02:07:00 | E47: =IF(ISBLANK(Control_15 Establishment_1),"",Control_15 Establishment_1) -> CO-OP GAS STATION | H47: | | J47: City | L47: =IF(ISBLANK(City),"",City) ->  | P47: Province/State | S47: =IF(ISBLANK(Province_State),"",Province_State) -> 
A48: =IF(ISBLANK(Distance Control_15),"",Control_15 Distance) -> 955.6 | B48: =Control_15 Open_time -> 41805.4375 | C48: =Control_15 Close_time -> 41807.08819 | D48: =IF(ISBLANK(Locale Control_15),"",Locale Control_15) -> MILLSTREAM | E48: =IF(ISBLANK(Control_15 Establishment_2),"",Control_15 Establishment_2) -> Signature or | H48: | | J48: Country | L48: =IF(ISBLANK(Country),"",Country) ->  | P48: Postal Code | S48: =IF(ISBLANK(Postal_Code),"",Postal_Code) -> 
B49: =Control_15 Open_time -> 2014-06-15T10:30:00 | C49: =Control_15 Close_time -> 2014-06-17T02:07:00 | E49: =IF(ISBLANK(Control_15 Establishment_3),"",Control_15 Establishment_3) -> Opens at what time? | H49: |
B50: =Control_16 Open_time -> 2014-06-15T11:39:00 | C50: =Control_16 Close_time -> 2014-06-17T04:57:00 | E50: =IF(ISBLANK(Control_16 Establishment_1),"",Control_16 Establishment_1) -> 7-11 CONVENIENCE STORE | H50: | | J50: Telephone | L50: =IF(ISBLANK(Home_telephone),"",Home_telephone) ->  | P50: email | Q50: =IF(ISBLANK(email),"",email) -> 
A51: =IF(ISBLANK(Distance Control_16),"",Control_16 Distance) -> 988 | B51: =Control_16 Open_time -> 41805.48542 | C51: =Control_16 Close_time -> 41807.20625 | D51: =IF(ISBLANK(Locale Control_16),"",Locale Control_16) -> SIDNEY | E51: =IF(ISBLANK(Control_16 Establishment_2),"",Control_16 Establishment_2) ->  | H51: |
B52: =Control_16 Open_time -> 2014-06-15T11:39:00 | C52: =Control_16 Close_time -> 2014-06-17T04:57:00 | E52: =IF(ISBLANK(Control_16 Establishment_3),"",Control_16 Establishment_3) ->  | H52: | | J52: Under the sanction of Cycling BC
B53: =Control_17 Open_time -> 2014-06-15T12:22:00 | C53: =Control_17 Close_time -> 2014-06-17T06:00:00 | E53: =IF(ISBLANK(Control_17 Establishment_1),"",Control_17 Establishment_1) -> TIM HORTON’S or McDonald's | H53: | | J53: Founding member of LES RANDONNEURS MONDIAUX (1983)
A54: =IF(ISBLANK(Distance Control_17),"",Control_17 Distance) -> 1007.2 | B54: =Control_17 Open_time -> 41805.51528 | C54: =Control_17 Close_time -> 41807.25 | D54: =IF(ISBLANK(Locale Control_17),"",Locale Control_17) -> VICTORIA | E54: =IF(ISBLANK(Control_17 Establishment_2),"",Control_17 Establishment_2) -> 110-4440 West Saanich Rd. | H54: |
B55: =Control_17 Open_time -> 2014-06-15T12:22:00 | C55: =Control_17 Close_time -> 2014-06-17T06:00:00 | E55: =IF(ISBLANK(Control_17 Establishment_3),"",Control_17 Establishment_3) -> ROYAL OAK PLAZA, Saanich | H55: | | J55: Each Randonneur must carry a Control Card, have it signed at the control between the opening and closing times, and return it to the organizer.
B56: =Control_18 Open_time ->  | C56: =Control_18 Close_time ->  | E56: =IF(ISBLANK(Control_18 Establishment_1),"",Control_18 Establishment_1) ->  | H56: | | J56: Date | K56: =IF(ISBLANK(Start_date),"",Start_date) -> 2014-06-14 | O56: Start time
A57: =IF(ISBLANK(Distance Control_18),"",Control_18 Distance) ->  | B57: =Control_18 Open_time ->  | C57: =Control_18 Close_time ->  | D57: =IF(ISBLANK(Locale Control_18),"",Locale Control_18) ->  | E57: =IF(ISBLANK(Control_18 Establishment_2),"",Control_18 Establishment_2) ->  | H57: | | O57: Finish time
B58: =Control_18 Open_time ->  | C58: =Control_18 Close_time ->  | E58: =IF(ISBLANK(Control_18 Establishment_3),"",Control_18 Establishment_3) ->  | H58: | | O58: Elapsed time
B59: =Control_19 Open_time ->  | C59: =Control_19 Close_time ->  | E59: =IF(ISBLANK(Control_19 Establishment_1),"",Control_19 Establishment_1) ->  | H59: | | J59: Rider's signature at completion
A60: =IF(ISBLANK(Distance Control_19),"",Control_19 Distance) ->  | B60: =Control_19 Open_time ->  | C60: =Control_19 Close_time ->  | D60: =IF(ISBLANK(Locale Control_19),"",Locale Control_19) -> SECRET | E60: =IF(ISBLANK(Control_19 Establishment_2),"",Control_19 Establishment_2) ->  | H60: | | L60: Randonneur Committee Authorization
B61: =Control_19 Open_time ->  | C61: =Control_19 Close_time ->  | E61: =IF(ISBLANK(Control_19 Establishment_3),"",Control_19 Establishment_3) ->  | H61: |
B62: =Control_20 Open_time ->  | C62: =Control_20 Close_time ->  | E62: =IF(ISBLANK(Control_20 Establishment_1),"",Control_20 Establishment_1) ->  | H62: | | S62: msg (250) 598-4135
A63: =IF(ISBLANK(Distance Control_20),"",Control_20 Distance) ->  | B63: =Control_20 Open_time ->  | C63: =Control_20 Close_time ->  | D63: =IF(ISBLANK(Locale Control_20),"",Locale Control_20) -> SECRET | E63: =IF(ISBLANK(Control_20 Establishment_2),"",Control_20 Establishment_2) ->  | H63: |
B64: =Control_20 Open_time ->  | C64: =Control_20 Close_time ->  | E64: =IF(ISBLANK(Control_20 Establishment_3),"",Control_20 Establishment_3) ->  | H64: | | L64: Brevet No. | N64: =IF(ISBLANK(Brevet_Number),"",Brevet_Number) -> VI1000B

Sheet Riders
B1: Surname | C1: First Name | D1: Initial | E1: Address 1 | F1: Address 2 | G1: City | H1: Province/State | I1: Country | J1: Postal Code | K1: Home telephone | L1: Work telephone | M1: Fax | N1: email | O1: Finish Time | P1: Codes | Q1: Rand Memb | R1: Pin
B2: =IF(ISBLANK(B3),"",B3) -> 
A3: 1
P34: r - 1/2 hr - route violation
P35: l - 1/2 hr - no lights
P36: f - 1/2 hr - no fenders
P37: e - rode early
P38: d - rode late

Sheet Web Page (km)
A1: At km | B1: from Control | C1: Turn | D1: onto ROUTE | E1: then Go km
A2: 0 | B2: 0 | D2: CONTROL #1 - START - Victoria Tim Horton's 3501 Ravine Way @ Blanchard | F2: Go to 100 km point
A3: 0 | B3: 0 | C3: L | D3: RAVINE WAY @ Stop Sign | E3: =A4-A3 -> 0.1 | F3: Go to 200 km point
A4: 0.1 | B4: 0.1 | C4: SO | D4: Cross Blanchard (@lights) | E4: =A5-A4 -> 0.1 | F4: Go to 300 km point
A5: 0.2 | B5: 0.2 | C5: L | D5: CAREY | E5: 0.2 | F5: Go to 400 km point
A6: 0.4 | B6: 0.4 | C6: R | D6: TRANS CANADA HIGHWAY #1 (N) | E6: 3.7 | F6: Go to 500 km point
A7: 4.1 | B7: 4.1 | C7: R | D7: EXIT #8 (Helmcken) | E7: 0.5 | F7: Go to 600 km point
A8: 4.6 | B8: 4.6 | C8: SO | D8: Cross Helmcken onto on-ramp | E8: 0.3 | F8: Go to 700 km point
A9: 4.9 | B9: 4.9 | C9: SO | D9: HWY #1 | E9: 0.5 | F9: Go to 800 km point
A10: 5.4 | B10: 5.4 | C10: R | D10: EXIT #10 (Colwood) | E10: 0.4 | F10: Go to 900 km point
A11: 5.8 | B11: 5.8 | C11: L | D11: HWY #14 (left lane to Colwood) | E11: 0.7
A12: 6.5 | B12: 6.5 | C12: SO | D12: AT LIGHTS | E12: 0.5
A13: 7 | B13: 7 | C13: R | D13: 6 MILE ROAD | E13: 0.9
A14: 7.9 | B14: 7.9 | C14: L | D14: To Hwy #1 N (NANAIMO) | E14: 0.3 | F14: Start at Control #1
A15: 8.2 | B15: 8.2 | C15: L | D15: ENTER Hwy #1 North | E15: 1.8 | F15: Go to Control #2 | H15: title
A16: 10 | B16: 10 | C16: R | D16: EXIT #14 (Millstream) | E16: 0.2 | F16: Go to Control #3 | H16: Victoria - Gold river - Port Alberni - Cowichan lake - Sydney - Victoria
A17: 10.2 | B17: 10.2 | D17: OFF-RAMP to Langford | E17: 0.2 | F17: Go to Control #4
A18: 10.4 | B18: 10.4 | C18: L | D18: USE CAUTION | E18: =A19-A18 -> 0.1 | F18: Go to Control #5
A19: 10.5 | B19: 10.5 | C19: R | D19: BIKE ROUTE Hwy #1 North (immediately after overpass) | E19: =A20-A19 -> 0.3 | F19: Go to Control #6
A20: 10.8 | B20: 10.8 | C20: R | D20: HIGHWAY #1 (north) | E20: =A21-A20 -> 0.9 | F20: Go to Control #7
A21: 11.7 | B21: 11.7 | C21: SO | D21: Start of intermittent DANGEROUS RUMBLE STRIPS BY WHITE FOG LINE – PROCEED CAUTIOUSLY DOWN ALL HILLS! | E21: =A22-A21 -> 23 | F21: Go to Control #8
A22: 34.7 | B22: 34.7 | C22: R | D22: MILL BAY RD. Exit -Don't Miss!! | E22: 0.6 | F22: Go to Control #9
A23: 35.3 | B23: 35.3 | C23: L | D23: MILL BAY RD. East @ Stop Sign | E23: 6.9 | F23: Go to Control #10
A24: 42.2 | B24: 42.2 | C24: L | D24: DELOUME RD. => TCH #1 | E24: 0.2 | F24: Go to Control #11
A25: 42.4 | B25: 42.4 | C25: R | D25: ROUTE 1 (TCH) | E25: 1.3 | F25: Go to Control #12
A26: 43.7 | B26: 43.7 | C26: R | D26: KILMALU RD. (at lights) | E26: 0.5 | F26: Go to Control #13
A27: 44.2 | B27: 44.2 | C27: L | D27: TELEGRAPH RD. | E27: 8.8 | F27: Go to Control #14
A28: 53 | B28: 53 | C28: R | D28: COWICHAN BAY RD @ Stop Sign | E28: 5.7 | F28: Go to Control #15
A29: 58.7 | B29: 58.7 | C29: SO | D29: TZOUHALEM RD. | E29: 5.2 | F29: Go to Control #16
A30: 63.9 | B30: 63.9 | C30: R | D30: INDIAN RD. (No Sign) @ roundabout | E30: 0.1 | F30: Finish at Control #17
A31: 64 | B31: 64 | C31: VR | D31: MAPLE BAY RD. | E31: 6
A32: 70 | B32: 70 | C32: L | D32: HERD RD. =>Crofton - Don't Miss!! | E32: 2.6
A33: 72.6 | B33: 72.6 | C33: R | D33: OSBORNE BAY RD =>Crofton | E33: 5.3
A34: 77.9 | B34: 77.9 | C34: L | D34: CHAPLIN ST. (in Crofton) | E34: 0.2
A35: 78.1 | B35: 78.1 | C35: VR | D35: CROFTON RD. | E35: 3.6
A36: 81.7 | B36: 81.7 | C36: R | D36: CHEMAINUS RD (No Sign) @ Stop | E36: 0.9
A37: 82.6 | B37: 82.6 | C37: SO | D37: CAUTION - bad bridge surface | E37: 3.7
A38: 86.3 | B38: 86.3 | C38: SO | D38: CHEMAINUS RD thru roundabout | E38: 0.9
A39: 87.2 | B39: 87.2 | C39: R | D39: CONTROL #2 - Chemainus SUBWAY on right or your choice | E39: 0
A40: 87.2 | B40: =A40-A39 -> 0 | C40: R | D40: CHEMAINUS RD. - continue north | E40: 9.6
A41: 96.8 | B41: =A41-$A$39 -> 9.6 | C41: R | D41: HIGHWAY #1 (north) @ lights | E41: 3
A42: 99.8 | B42: =A42-$A$39 -> 12.6 | C42: R | D42: FIRST AVE. (at lights) | E42: 0.1
A43: 99.9 | B43: 12.7 | C43: L | D43: ROCKY CREEK RD. @ Stop Sign | E43: 1.9
A44: 101.8 | B44: 14.6 | C44: SO | D44: Stop Sign | E44: 0.1
A45: 101.9 | B45: 14.7 | C45: L | D45: MERGE ONTO HWY 1 (No Sign) | E45: 3.1
A46: 105 | B46: 17.8 | C46: R | D46: EXIT CEDAR RD => CEDAR | E46: 0.3
A47: 105.3 | B47: 18.1 | C47: VR | D47: CEDAR RD. | E47: 9.3
A48: 114.6 | B48: 27.4 | C48: VL | D48: To Stay on CEDAR RD. | E48: 0.6
A49: 115.2 | B49: =A49-$A$49 -> 0 | C49: R | D49: CONTROL #3 - Cedar Answer question about Wheatsheaf Pub - control card | E49: 0
A50: 115.2 | B50: =A50-$A$49 -> 0 | C50: SO | D50: CEDAR RD. - continue north | E50: 1.9
A51: 117.1 | B51: 1.9 | C51: L | D51: CEDAR RD. @ Stop - cross bridge | E51: 3
A52: 120.1 | B52: 4.9 | C52: R | D52: ROUTE 1 (TCH) @ lights | E52: 4.6
A53: 124.7 | B53: 9.5 | C53: R | D53: ESPLANADE @ lights -Don't Miss!! | E53: 0.4
A54: 125.1 | B54: 9.9 | C54: SO | D54: BECOMES FRONT ST. @ lights | E54: 1
A55: 126.1 | B55: 10.9 | C55: R | D55: TERMINAL/HWY 1 - @ lights | E55: 0.1
A56: 126.2 | B56: 11 | C56: VL | D56: Towards HWY 19A N | E56: 1.5
A57: 127.7 | B57: 12.5 | C57: R | D57: PRINCESS ROYAL AVE. | E57: 0.3
A58: 128 | B58: 12.8 | C58: L | D58: ESTEVAN | E58: 1.1
A59: 129.1 | B59: 13.9 | C59: SO | D59: AT STOP | E59: 0
A60: 129.1 | B60: 13.9 | C60: R | D60: DEPARTURE BAY RD. | E60: 2
A61: 131.1 | B61: 15.9 | C61: R | D61: HAMMOND BAY RD. | E61: 8.8
A62: 139.9 | B62: 24.7 | C62: R | D62: BRICKYARD RD. | E62: 0.8
A63: 140.7 | B63: 25.5 | C63: L | D63: WALDBANK RD @ Stop bc Dover | E63: 1
A64: 141.7 | B64: =A64-$A$64 -> 0 | C64: R | D64: CONTROL #4 MOHAWK GAS STATION Dover @ Blueback | E64: 0
A65: 141.7 | B65: =A65-$A$64 -> 0 | C65: R | D65: Continue on Dover | E65: 0.8
A66: 142.5 | B66: 0.8 | C66: R | D66: DICKINSON | E66: 2.2
A67: 144.7 | B67: 3 | C67: R | D67: LANTZVILLE RD - @ Stop | E67: 3.6
A68: 148.3 | B68: 6.6 | C68: VR | D68: MERGE ONTO HWY 19 N-No Sign | E68: 6
A69: 154.3 | B69: 12.6 | C69: R | D69: NORTHWEST BAY RD. | E69: 9.6
A70: 163.9 | B70: 22.2 | C70: L | D70: TOWARDS RTE 19A N | E70: 0.1
A71: 164 | B71: 22.3 | C71: R | D71: HWY 19A N. @ lights | E71: 76.1
A72: 240.1 | B72: 98.4 | C72: R | D72: HWY 19A N. @ lights Courtenay | E72: 0.1
A73: 240.2 | B73: 98.5 | C73: SO | D73: CAUTION! STEEL GRID BRIDGE | E73: 0.1
A74: 240.3 | B74: 98.6 | C74: R | D74: COMOX RD. @ lights => Comox | E74: 5.1
A75: 245.4 | B75: =A75-$A$75 -> 0 | D75: CONTROL #5--COMOX YOUR CHOICE | E75: 0.5
A76: 245.9 | B76: =A76-$A$75 -> 0.5 | C76: L | D76: PRICHARD RD | E76: 3.5
A77: 249.4 | B77: 4 | C77: SO | D77: BECOME MILITARY ROW | E77: 1.6
A78: 251 | B78: 5.6 | C78: SO | D78: BECOMES LITTLE RIVER RD | E78: 1.9
A79: 252.9 | B79: 7.5 | C79: L | D79: Stay on LITTLE RIVER RD | E79: 0.5
A80: 253.4 | B80: 8 | C80: L | D80: WILKINSON | E80: 1.1
A81: 254.5 | B81: 9.1 | C81: L | D81: ELLENOR RD @ Stop bc Anderton | E81: 2.9
A82: 257.4 | B82: 12 | C82: R | D82: RYAN RD @ Lights | E82: 1.8
A83: 259.2 | B83: 13.8 | C83: R | D83: LERWICK RD @ Lights => C.River | E83: =A85-A83 -> 3.2
C84: SO | D84: VETERAN'S MEMORIAL PKWY
A85: 262.4 | B85: 17 | C85: R | D85: HWY #19A N @ lights | E85: =A86-A85 -> 42.2
A86: 304.6 | B86: 59.2 | C86: R | D86: HWY #19A @ Lights - Campbell R. | E86: 2.7
A87: 307.3 | B87: =A87-$A$87 -> 0 | C87: R | D87: CONTROL #6 - CAMPBELL RIVER MOHAWK GAS STATION | E87: 0
A88: 307.3 | B88: =A88-$A$87 -> 0 | C88: SO | D88: HWY 19A N | E88: 0.2
A89: 307.5 | B89: 0.2 | C89: SO | D89: at 1st lights - NOT to Port Hardy!! | E89: 0.2
A90: 307.7 | B90: 0.4 | C90: SO | D90: HWY 28 @ Lights => Gold River | E90: 41.3
A91: 349 | B91: 41.7 | C91: SO | D91: Strathcona Park Lodge on Right | E91: 6.5
A92: 355.5 | B92: 48.2 | C92: R | D92: Stay on HWY 28 - cross bridge | E92: 39.9
A93: 395.4 | B93: 88.1 | C93: L | D93: MUCHALET DRIVE - Gold River | E93: 0.5
A94: 395.9 | B94: 88.6 | C94: R | D94: NIMPKISH DRIVE | E94: 0.1
A95: 396 | B95: =A95-$A$95 -> 0 | C95: L | D95: CONTROL #7--GOLD RIVER GOLD RIVER CHALET PARKING ANSWER QUEST. - CNTRL CARD | E95: 0
A96: 396 | B96: =A96-$A$95 -> 0 | C96: U | D96: RETURN TO CAMPELL RIVER | E96: 0.1
A97: 396.1 | B97: 0.1 | C97: R | D97: NIMPKISH DRIVE | E97: 0.1
A98: 396.2 | B98: 0.2 | C98: L | D98: MUCHALET DRIVE @ Stop | E98: 0.5
A99: 396.7 | B99: 0.7 | C99: R | D99: GOLD RIVER RD/HWY 28 @ Stop | E99: 39.6
A100: 436.3 | B100: 40.3 | C100: L | D100: HWY 28 @ Stop - after bridge | E100: 6.7
A101: 443 | B101: 47 | C101: SO | D101: Strathcona Park Lodge on Left | E101: 41.1
A102: 484.1 | B102: 88.1 | C102: SO | D102: HWY #19A south to Downtown | E102: 0.2
A103: 484.3 | B103: 88.3 | C103: SO | D103: HWY #19A - 2nd set of lights | E103: 0.2
A104: 484.5 | B104: =A104-$A$104 -> 0 | C104: L | D104: CONTROL #8--CAMPBELL RIVER MOHAWK GAS STATION | E104: 0
A105: 484.5 | B105: =A105-$A$104 -> 0 | C105: L | D105: Continue on HWY 19A S | E105: 2.7
A106: 487.2 | B106: 2.7 | C106: L | D106: HWY 19A S @ Lights | E106: 33.9
A107: 521.1 | B107: 36.6 | C107: L | D107: COLEMAN RD | E107: 4.2
A108: 525.3 | B108: 40.8 | C108: R | D108: BATES RD @ Stop => Airport | E108: 3.8
A109: 529.1 | B109: 44.6 | C109: R | D109: WAVELAND RD. => Airport | E109: 3.8
A110: 532.9 | B110: 48.4 | C110: L | D110: ELLENOR RD @ Stop | E110: 1.3
A111: 534.2 | B111: 49.7 | C111: R | D111: WILKINSON | E111: 1.1
A112: 535.3 | B112: 50.8 | C112: R | D112: LITTLE RIVER RD | E112: 0.5
A113: 535.8 | B113: 51.3 | C113: R | D113: Stay on LITTLE RIVER RD | E113: 1.9
A114: 537.7 | B114: 53.2 | C114: SO | D114: MILITARY ROW @ Stop | E114: 1.6
A115: 539.3 | B115: 54.8 | C115: SO | D115: MILITARY ROW bc Pritchard Rd. | E115: 1.6
A116: 540.9 | B116: 56.4 | C116: SO | D116: PRITCHARD RD @ Stop | E116: 1.8
A117: 542.7 | B117: 58.2 | C117: VR | D117: COMOX AVE | E117: 0.3
A118: 543 | B118: =A118-$A$118 -> 0 | D118: CONTROL #9 - COMOX YOUR CHOICE or ANSWER QUEST. - CNTRL CARD | E118: 5.3
A119: 548.3 | B119: 5.3 | C119: L | D119: HWY 19A S @ Lights => Pksville | E119: 0.1
A120: 548.4 | B120: 5.4 | C120: CO | D120: CAUTION!! STEEL GRID BRIDGE | E120: 0.2
A121: 548.6 | B121: 5.6 | C121: L | D121: HWY 19A S @ Lights | E121: 1.5
A122: 550.1 | B122: 7.1 | C122: R | D122: 29th ST => Cumberland | E122: 5.5
A123: 555.6 | B123: 12.6 | C123: SO | D123: continue on to CUMBERLAND | E123: 1.6
A124: 557.2 | B124: =A124-$A$124 -> 0 | C124: R | D124: CONTROL #10 - CUMBERLAND Cumberland Rd + Bevan ANSWER QUEST. - CNTRL CARD | E124: 0.3
A125: 557.5 | B125: =A125-$A$124 -> 0.3 | C125: VL | D125: FOURTH ST @ Peace Park | E125: 0.5
A126: 558 | B126: 0.8 | C126: L | D126: DUNSMUIR AVE | E126: 6.7
A127: 564.7 | B127: 7.5 | C127: R | D127: HWY 19A S @ Lights=>Union Bay | E127: 55.4
A128: 620.1 | B128: 62.9 | C128: R | D128: MEMORIAL @ Shell Station | E128: 0.9
A129: 621 | B129: 63.8 | C129: SO | D129: Courtyard Patio Café - Good pie! | E129: 2.8
A130: 623.8 | B130: 66.6 | C130: SO | D130: HWY 4W => Port Alberni | E130: 1
A131: 624.8 | B131: 67.6 | C131: R | D131: HILLIERS RD S | E131: 4.8
A132: 629.6 | B132: 72.4 | C132: R | D132: HWY 4W @ T | E132: 29.2
A133: 658.8 | B133: 101.6 | C133: VR | D133: to stay on HWY 4W | E133: 4.1
A134: 662.9 | B134: =A134-$A$134 -> 0 | C134: L | D134: CONTROL #11 - PORT ALBERNI 7-11 CONVENIENCE STORE | E134: =A135-A134 -> 0.1
A135: 663 | B135: =A135-$A$134 -> 0.1 | C135: U | D135: Rt. Onto Johnston Rd/HWY 4E | E135: 0
A136: 663 | B136: =A136-$A$134 -> 0.1 | D136: Towards Parksville | E136: 34
A137: 697 | B137: 34.1 | C137: R | D137: PRATT RD | E137: 2
A138: 699 | B138: 36.1 | C138: L | D138: GRAFTON AVE | E138: 7.3
A139: 706.3 | B139: 43.4 | C139: L | D139: ERRINGTON RD | E139: 2
A140: 708.3 | B140: 45.4 | C140: R | D140: ALBERNI HWY | E140: 2.6
A141: 710.9 | B141: 48 | C141: R | D141: HWY 19 S =>Nanaimo | E141: 5.5
A142: 716.4 | B142: 53.5 | C142: R | D142: EXIT 46 TO HWY 19A N | E142: 0.6
A143: 717 | B143: 54.1 | C143: L | D143: HWY 19A N @ Stop => Pksville | E143: 1
A144: 718 | B144: 55.1 | C144: R | D144: FRANKLIN'S GULL/NW BAY-lights | E144: 0.1
A145: 718.1 | B145: 55.2 | C145: R | D145: NORTH WEST BAY RD | E145: 9.6
A146: 727.7 | B146: 64.8 | C146: L | D146: ISLAND HWY 19S =>Nanaimo | E146: 7.6
A147: 735.3 | B147: 72.4 | C147: R | D147: SUPERIOR RD | E147: 0.3
A148: 735.6 | B148: 72.7 | C148: L | D148: VANDENHOEK | E148: =A149-A148 -> 0.1
A149: 735.7 | B149: 72.8 | C149: L | D149: HARBY RD W | E149: 1.3
A150: 737 | B150: 74.1 | C150: SO | D150: Becomes PHILIP RD | E150: 0.5
A151: 737.5 | B151: 74.6 | C151: L | D151: AULDS RD | E151: 0.1
A152: 737.6 | B152: 74.7 | C152: R | D152: To Stay on AULDS RD | E152: 2.7
A153: 740.3 | B153: 77.4 | C153: SO | D153: Cross NANAIMO PKWY/HWY 19 | E153: 0.3
A154: 740.6 | B154: 77.7 | C154: R | D154: METRAL DRIVE | E154: 1.3
A155: 741.9 | B155: 79 | C155: R | D155: DOUMONT RD | E155: 4.3
A156: 746.2 | B156: 83.3 | C156: L | D156: BIGGS RD @ Stop | E156: 3.5
A157: 749.7 | B157: 86.8 | C157: R | D157: JINGLE POT RD | E157: 8.1
A158: 757.8 | B158: 94.9 | C158: SO | D158: Cross NANAIMO PKWY/HWY 19 | E158: 0.7
A159: 758.5 | B159: 95.6 | C159: VR | D159: JINGLE POT RD becomes THIRD | E159: 1.1
A160: 759.6 | B160: 96.7 | C160: R | D160: WAKESIAH AVE | E160: 1.2
A161: 760.8 | B161: 97.9 | C161: L | D161: SIXTH | E161: 0.9
A162: 761.7 | B162: 98.8 | C162: R | D162: BRUCE AVE | E162: 1.6
A163: 763.3 | B163: 100.4 | C163: VL | D163: TENTH AVE | E163: 2.4
A164: 765.7 | B164: =A164-$A$164 -> 0 | C164: R | D164: CONTROL #12 - NANAIMO MOHAWK GAS STATION | E164: 0
A165: 765.7 | B165: =A165-$A$164 -> 0 | C165: R | D165: Right out of Mohawk | E165: 0.1
A166: 765.8 | B166: 0.1 | C166: R | D166: TRANS CANADA HWY 1 @Lights | E166: 0.5
A167: 766.3 | B167: 0.6 | C167: L | D167: LEFT LANE FOR CEDAR RD | E167: 0.2
A168: 766.5 | B168: 0.8 | C168: L | D168: CEDAR RD @ Lights | E168: 3
A169: 769.5 | B169: 3.8 | C169: R | D169: Stay on CEDAR RD -after bridge! | E169: 11.9
A170: 781.4 | B170: 15.7 | C170: L | D170: HWY 1 @ lights - toward Victoria | E170: 30.9
A171: 812.3 | B171: 46.6 | C171: R | D171: DRINKWATER RD - Tim H. on rt. | E171: 1.5
A172: 813.8 | B172: 48.1 | C172: L | D172: SOMENOS RD | E172: 1.2
A173: 815 | B173: 49.3 | C173: R | D173: COWICHAN LAKE RD @ Rndabt. | E173: 1.9
A174: 816.9 | B174: 51.2 | C174: L | D174: COWICHAN LAKE RD | E174: 16.4
A175: 833.3 | B175: 67.6 | C175: SO | D175: Cross SKUTZ FALLS RD @ Stop | E175: 5.9
A176: 839.2 | B176: 73.5 | C176: L | D176: GREENDALE RD | E176: 1.6
A177: 840.8 | B177: 75.1 | C177: L | D177: COWICHAN LAKE RD @ T-Stop | E177: 0.2
A178: 841 | B178: =A178-$A$178 -> 0 | C178: R | D178: CONTROL #13-LAKE COWICHAN ESSO STATION @ MacDONALD | E178: 0
A179: 841 | B179: =A179-$A$178 -> 0 | C179: U | D179: LEFT ONTO COWICHAN LAKE RD | E179: 0.2
A180: 841.2 | B180: 0.2 | C180: R | D180: COWICHN LAKE RD-2nd right turn | E180: 7.4
A181: 848.6 | B181: 7.6 | C181: SO | D181: Cross SKUTZ FALLS RD @ Stop | E181: 16.4
A182: 865 | B182: 24 | C182: R | D182: TANSOR/COWICHAN LAKE RD | E182: 1.8
A183: 866.8 | B183: 25.8 | C183: L | D183: SOMENOS RD @ Rndabout | E183: 1.3
A184: 868.1 | B184: 27.1 | C184: R | D184: DRINKWATER RD @ graveyard | E184: =A186-A184 -> 1.6
C185: SO | D185: cross Trans Canada Hwy 1 @ light
A186: 869.7 | B186: 28.7 | C186: L | D186: BELL MCKINNON RD. Don't Miss! | E186: 1.6
A187: 871.3 | B187: 30.3 | C187: SO | D187: stay on BELL MCKINNON | E187: 3.7
A188: 875 | B188: 34 | C188: R | D188: WESTHOLME RD @ Stop | E188: 3
A189: 878 | B189: 37 | C189: SO | D189: becomes CHEMAINUS RD | E189: 1.7
A190: 879.7 | B190: 38.7 | C190: R | D190: CROFTON RD | E190: 3.7
A191: 883.4 | B191: 42.4 | C191: R | D191: YORK AVE/OSBORNE BAY RD | E191: 5.2
A192: 888.6 | B192: 47.6 | C192: L | D192: HERD RD | E192: 2.8
A193: 891.4 | B193: 50.4 | C193: R | D193: MAPLE BAY RD =>Duncan | E193: 6
A194: 897.4 | B194: 56.4 | C194: L | D194: TZOUHALEM -no sign- roundabout | E194: 0.2
A195: 897.6 | B195: 56.6 | C195: SO | D195: Cowichan Lodge on left | E195: 4.9
A196: 902.5 | B196: 61.5 | C196: SO | D196: COWICHAN BAY RD @ Stop | E196: 5.8
A197: 908.3 | B197: 67.3 | C197: L | D197: TELEGRAPH RD -School on left | E197: 8.7
A198: 917 | B198: 76 | C198: R | D198: KILMALU RD @ T-Stop | E198: 0.6
A199: 917.6 | B199: 76.6 | C199: L | D199: TRANS CANADA HWY 1 @Lights | E199: 0.8
A200: 918.4 | B200: 77.4 | C200: R | D200: SHAWNIGAN/MILL BAY RD -lights | E200: 5.3
... 49 more rows

Sheet Route Sheets (prt)
A1: At km | B1: from Con- trol | C1: Turn | D1: onto ROUTE | E1: then Go km | G1: At km | H1: from Con- trol | I1: Turn | J1: onto ROUTE | K1: then Go km
A2: 0 | B2: 0 | D2: CONTROL #1 - START - Victoria Tim Horton's 3501 Ravine Way @ Blanchard | G2: 0 | H2: 0 | J2: CONTROL #1 - START - Victoria Tim Horton's 3501 Ravine Way @ Blanchard
A3: 0 | B3: 0 | C3: L | D3: RAVINE WAY @ Stop Sign | E3: =A4-A3 -> 0.1 | G3: 0 | H3: 0 | I3: L | J3: RAVINE WAY @ Stop Sign | K3: =G4-G3 -> 0.1
A4: 0.1 | B4: 0.1 | C4: SO | D4: Cross Blanchard (@lights) | E4: =A5-A4 -> 0.1 | G4: 0.1 | H4: 0.1 | I4: SO | J4: Cross Blanchard (@lights) | K4: =G5-G4 -> 0.1
A5: 0.2 | B5: 0.2 | C5: L | D5: CAREY | E5: 0.2 | G5: 0.2 | H5: 0.2 | I5: L | J5: CAREY | K5: 0.2
A6: 0.4 | B6: 0.4 | C6: R | D6: TRANS CANADA HIGHWAY #1 (N) | E6: 3.7 | G6: 0.4 | H6: 0.4 | I6: R | J6: TRANS CANADA HIGHWAY #1 (N) | K6: 3.7
A7: 4.1 | B7: 4.1 | C7: R | D7: EXIT #8 (Helmcken) | E7: 0.5 | G7: 4.1 | H7: 4.1 | I7: R | J7: EXIT #8 (Helmcken) | K7: 0.5
A8: 4.6 | B8: 4.6 | C8: SO | D8: Cross Helmcken onto on-ramp | E8: 0.3 | G8: 4.6 | H8: 4.6 | I8: SO | J8: Cross Helmcken onto on-ramp | K8: 0.3
A9: 4.9 | B9: 4.9 | C9: SO | D9: HWY #1 | E9: 0.5 | G9: 4.9 | H9: 4.9 | I9: SO | J9: HWY #1 | K9: 0.5
A10: 5.4 | B10: 5.4 | C10: R | D10: EXIT #10 (Colwood) | E10: 0.4 | G10: 5.4 | H10: 5.4 | I10: R | J10: EXIT #10 (Colwood) | K10: 0.4
A11: 5.8 | B11: 5.8 | C11: L | D11: HWY #14 (left lane to Colwood) | E11: 0.7 | G11: 5.8 | H11: 5.8 | I11: L | J11: HWY #14 (left lane to Colwood) | K11: 0.7
A12: 6.5 | B12: 6.5 | C12: SO | D12: AT LIGHTS | E12: 0.5 | G12: 6.5 | H12: 6.5 | I12: SO | J12: AT LIGHTS | K12: 0.5
A13: 7 | B13: 7 | C13: R | D13: 6 MILE ROAD | E13: 0.9 | G13: 7 | H13: 7 | I13: R | J13: 6 MILE ROAD | K13: 0.9
A14: 7.9 | B14: 7.9 | C14: L | D14: To Hwy #1 N (NANAIMO) | E14: 0.3 | G14: 7.9 | H14: 7.9 | I14: L | J14: To Hwy #1 N (NANAIMO) | K14: 0.3
A15: 8.2 | B15: 8.2 | C15: L | D15: ENTER Hwy #1 North | E15: 1.8 | G15: 8.2 | H15: 8.2 | I15: L | J15: ENTER Hwy #1 North | K15: 1.8
A16: 10 | B16: 10 | C16: R | D16: EXIT #14 (Millstream) | E16: 0.2 | G16: 10 | H16: 10 | I16: R | J16: EXIT #14 (Millstream) | K16: 0.2
A17: 10.2 | B17: 10.2 | D17: OFF-RAMP to Langford | E17: 0.2 | G17: 10.2 | H17: 10.2 | J17: OFF-RAMP to Langford | K17: 0.2
A18: 10.4 | B18: 10.4 | C18: L | D18: USE CAUTION | E18: =A19-A18 -> 0.1 | G18: 10.4 | H18: 10.4 | I18: L | J18: USE CAUTION | K18: =G19-G18 -> 0.1
A19: 10.5 | B19: 10.5 | C19: R | D19: BIKE ROUTE Hwy #1 North (immediately after overpass) | E19: =A20-A19 -> 0.3 | G19: 10.5 | H19: 10.5 | I19: R | J19: BIKE ROUTE Hwy #1 North (immediately after overpass) | K19: =G20-G19 -> 0.3
A20: 10.8 | B20: 10.8 | C20: R | D20: HIGHWAY #1 (north) | E20: =A21-A20 -> 0.9 | G20: 10.8 | H20: 10.8 | I20: R | J20: HIGHWAY #1 (north) | K20: =G21-G20 -> 0.9
A21: 11.7 | B21: 11.7 | C21: SO | D21: Start of intermittent DANGEROUS RUMBLE STRIPS BY WHITE FOG LINE – PROCEED CAUTIOUSLY DOWN ALL HILLS! | E21: =A22-A21 -> 23 | G21: 11.7 | H21: 11.7 | I21: SO | J21: Start of intermittent DANGEROUS RUMBLE STRIPS BY WHITE FOG LINE – PROCEED CAUTIOUSLY DOWN ALL HILLS! | K21: =G22-G21 -> 23
A22: 34.7 | B22: 34.7 | C22: R | D22: MILL BAY RD. Exit -Don't Miss!! | E22: 0.6 | G22: 34.7 | H22: 34.7 | I22: R | J22: MILL BAY RD. Exit -Don't Miss!! | K22: 0.6
A23: 35.3 | B23: 35.3 | C23: L | D23: MILL BAY RD. East @ Stop Sign | E23: 6.9 | G23: 35.3 | H23: 35.3 | I23: L | J23: MILL BAY RD. East @ Stop Sign | K23: 6.9
A24: 42.2 | B24: 42.2 | C24: L | D24: DELOUME RD. => TCH #1 | E24: 0.2 | G24: 42.2 | H24: 42.2 | I24: L | J24: DELOUME RD. => TCH #1 | K24: 0.2
A25: 42.4 | B25: 42.4 | C25: R | D25: ROUTE 1 (TCH) | E25: 1.3 | G25: 42.4 | H25: 42.4 | I25: R | J25: ROUTE 1 (TCH) | K25: 1.3
A26: 43.7 | B26: 43.7 | C26: R | D26: KILMALU RD. (at lights) | E26: 0.5 | G26: 43.7 | H26: 43.7 | I26: R | J26: KILMALU RD. (at lights) | K26: 0.5
A27: 44.2 | B27: 44.2 | C27: L | D27: TELEGRAPH RD. | E27: 8.8 | G27: 44.2 | H27: 44.2 | I27: L | J27: TELEGRAPH RD. | K27: 8.8
A28: 53 | B28: 53 | C28: R | D28: COWICHAN BAY RD @ Stop Sign | E28: 5.7 | G28: 53 | H28: 53 | I28: R | J28: COWICHAN BAY RD @ Stop Sign | K28: 5.7
A29: 58.7 | B29: 58.7 | C29: SO | D29: TZOUHALEM RD. | E29: 5.2 | G29: 58.7 | H29: 58.7 | I29: SO | J29: TZOUHALEM RD. | K29: 5.2
A30: 63.9 | B30: 63.9 | C30: R | D30: INDIAN RD. (No Sign) @ roundabout | E30: 0.1 | G30: 63.9 | H30: 63.9 | I30: R | J30: INDIAN RD. (No Sign) @ roundabout | K30: 0.1
A31: 64 | B31: 64 | C31: VR | D31: MAPLE BAY RD. | E31: 6 | G31: 64 | H31: 64 | I31: VR | J31: MAPLE BAY RD. | K31: 6
A32: 70 | B32: 70 | C32: L | D32: HERD RD. =>Crofton - Don't Miss!! | E32: 2.6 | G32: 70 | H32: 70 | I32: L | J32: HERD RD. =>Crofton - Don't Miss!! | K32: 2.6
A33: 72.6 | B33: 72.6 | C33: R | D33: OSBORNE BAY RD =>Crofton | E33: 5.3 | G33: 72.6 | H33: 72.6 | I33: R | J33: OSBORNE BAY RD =>Crofton | K33: 5.3
A34: 77.9 | B34: 77.9 | C34: L | D34: CHAPLIN ST. (in Crofton) | E34: 0.2 | G34: 77.9 | H34: 77.9 | I34: L | J34: CHAPLIN ST. (in Crofton) | K34: 0.2
A35: 78.1 | B35: 78.1 | C35: VR | D35: CROFTON RD. | E35: 3.6 | G35: 78.1 | H35: 78.1 | I35: VR | J35: CROFTON RD. | K35: 3.6
A36: 81.7 | B36: 81.7 | C36: R | D36: CHEMAINUS RD (No Sign) @ Stop | E36: 0.9 | G36: 81.7 | H36: 81.7 | I36: R | J36: CHEMAINUS RD (No Sign) @ Stop | K36: 0.9
A37: 82.6 | B37: 82.6 | C37: SO | D37: CAUTION - bad bridge surface | E37: 3.7 | G37: 82.6 | H37: 82.6 | I37: SO | J37: CAUTION - bad bridge surface | K37: 3.7
A38: 86.3 | B38: 86.3 | C38: SO | D38: CHEMAINUS RD thru roundabout | E38: 0.9 | G38: 86.3 | H38: 86.3 | I38: SO | J38: CHEMAINUS RD thru roundabout | K38: 0.9
A39: 87.2 | B39: 87.2 | C39: R | D39: CONTROL #2 - Chemainus SUBWAY on right or your choice | E39: 0 | G39: 87.2 | H39: 87.2 | I39: R | J39: CONTROL #2 - Chemainus SUBWAY on right or your choice | K39: 0
A40: 87.2 | B40: =A40-A39 -> 0 | C40: R | D40: CHEMAINUS RD. - continue north | E40: =A41-A40 -> 9.6 | G40: 87.2 | H40: =G40-G39 -> 0 | I40: R | J40: CHEMAINUS RD. - continue north | K40: =G41-G40 -> 9.6
A41: 96.8 | B41: =A41-$A$39 -> 9.6 | C41: R | D41: HIGHWAY #1 (north) @ lights | E41: =A42-A41 -> 3 | G41: 96.8 | H41: =G41-$A$39 -> 9.6 | I41: R | J41: HIGHWAY #1 (north) @ lights | K41: =G42-G41 -> 3
A42: 99.8 | B42: =A42-$A$39 -> 12.6 | C42: R | D42: FIRST AVE. (at lights) | E42: =A43-A42 -> 0.1 | G42: 99.8 | H42: =G42-$A$39 -> 12.6 | I42: R | J42: FIRST AVE. (at lights) | K42: =G43-G42 -> 0.1
A43: 99.9 | B43: 12.7 | C43: L | D43: ROCKY CREEK RD. @ Stop Sign | E43: 1.9 | G43: 99.9 | H43: 12.7 | I43: L | J43: ROCKY CREEK RD. @ Stop Sign | K43: 1.9
A44: 101.8 | B44: 14.6 | C44: SO | D44: Stop Sign | E44: 0.1 | G44: 101.8 | H44: 14.6 | I44: SO | J44: Stop Sign | K44: 0.1
A45: 101.9 | B45: 14.7 | C45: L | D45: MERGE ONTO HWY 1 (No Sign) | E45: 3.1 | G45: 101.9 | H45: 14.7 | I45: L | J45: MERGE ONTO HWY 1 (No Sign) | K45: 3.1
A46: 105 | B46: 17.8 | C46: R | D46: EXIT CEDAR RD => CEDAR | E46: 0.3 | G46: 105 | H46: 17.8 | I46: R | J46: EXIT CEDAR RD => CEDAR | K46: 0.3
A47: 105.3 | B47: 18.1 | C47: VR | D47: CEDAR RD. | E47: 9.3 | G47: 105.3 | H47: 18.1 | I47: VR | J47: CEDAR RD. | K47: 9.3
A48: 114.6 | B48: 27.4 | C48: VL | D48: To Stay on CEDAR RD. | E48: 0.6 | G48: 114.6 | H48: 27.4 | I48: VL | J48: To Stay on CEDAR RD. | K48: 0.6
A49: 115.2 | B49: =A49-$A$49 -> 0 | C49: R | D49: CONTROL #3 - Cedar Answer question about Wheatsheaf Pub - control card | E49: 0 | G49: 115.2 | H49: =G49-$A$49 -> 0 | I49: R | J49: CONTROL #3 - Cedar Answer question about Wheatsheaf Pub - control card | K49: 0
A50: 115.2 | B50: =A50-$A$49 -> 0 | C50: SO | D50: CEDAR RD. - continue north | E50: 1.9 | G50: 115.2 | H50: =G50-$A$49 -> 0 | I50: SO | J50: CEDAR RD. - continue north | K50: 1.9
A51: 117.1 | B51: 1.9 | C51: L | D51: CEDAR RD. @ Stop - cross bridge | E51: 3 | G51: 117.1 | H51: 1.9 | I51: L | J51: CEDAR RD. @ Stop - cross bridge | K51: 3
A52: 120.1 | B52: 4.9 | C52: R | D52: ROUTE 1 (TCH) @ lights | E52: 4.6 | G52: 120.1 | H52: 4.9 | I52: R | J52: ROUTE 1 (TCH) @ lights | K52: 4.6
A53: 124.7 | B53: 9.5 | C53: R | D53: ESPLANADE @ lights -Don't Miss!! | E53: 0.4 | G53: 124.7 | H53: 9.5 | I53: R | J53: ESPLANADE @ lights -Don't Miss!! | K53: 0.4
A54: 125.1 | B54: 9.9 | C54: SO | D54: BECOMES FRONT ST. @ lights | E54: 1 | G54: 125.1 | H54: 9.9 | I54: SO | J54: BECOMES FRONT ST. @ lights | K54: 1
A55: 126.1 | B55: 10.9 | C55: R | D55: TERMINAL/HWY 1 - @ lights | E55: 0.1 | G55: 126.1 | H55: 10.9 | I55: R | J55: TERMINAL/HWY 1 - @ lights | K55: 0.1
A56: 126.2 | B56: 11 | C56: VL | D56: Towards HWY 19A N | E56: 1.5 | G56: 126.2 | H56: 11 | I56: VL | J56: Towards HWY 19A N | K56: 1.5
A57: 127.7 | B57: 12.5 | C57: R | D57: PRINCESS ROYAL AVE. | E57: 0.3 | G57: 127.7 | H57: 12.5 | I57: R | J57: PRINCESS ROYAL AVE. | K57: 0.3
A58: 128 | B58: 12.8 | C58: L | D58: ESTEVAN | E58: 1.1 | G58: 128 | H58: 12.8 | I58: L | J58: ESTEVAN | K58: 1.1
A59: 129.1 | B59: 13.9 | C59: SO | D59: AT STOP | E59: 0 | G59: 129.1 | H59: 13.9 | I59: SO | J59: AT STOP | K59: 0
A60: 129.1 | B60: 13.9 | C60: R | D60: DEPARTURE BAY RD. | E60: 2 | G60: 129.1 | H60: 13.9 | I60: R | J60: DEPARTURE BAY RD. | K60: 2
A61: 131.1 | B61: 15.9 | C61: R | D61: HAMMOND BAY RD. | E61: 8.8 | G61: 131.1 | H61: 15.9 | I61: R | J61: HAMMOND BAY RD. | K61: 8.8
A62: 139.9 | B62: 24.7 | C62: R | D62: BRICKYARD RD. | E62: 0.8 | G62: 139.9 | H62: 24.7 | I62: R | J62: BRICKYARD RD. | K62: 0.8
A63: 140.7 | B63: 25.5 | C63: L | D63: WALDBANK RD @ Stop bc Dover | E63: 1 | G63: 140.7 | H63: 25.5 | I63: L | J63: WALDBANK RD @ Stop bc Dover | K63: 1
A64: 141.7 | B64: =A64-$A$64 -> 0 | C64: R | D64: CONTROL #4 MOHAWK GAS STATION Dover @ Blueback | E64: 0 | G64: 141.7 | H64: =G64-$A$64 -> 0 | I64: R | J64: CONTROL #4 MOHAWK GAS STATION Dover @ Blueback | K64: 0
A65: 141.7 | B65: =A65-$A$64 -> 0 | C65: R | D65: Continue on Dover | E65: 0.8 | G65: 141.7 | H65: =G65-$A$64 -> 0 | I65: R | J65: Continue on Dover | K65: 0.8
A66: 142.5 | B66: 0.8 | C66: R | D66: DICKINSON | E66: 2.2 | G66: 142.5 | H66: 0.8 | I66: R | J66: DICKINSON | K66: 2.2
A67: 144.7 | B67: 3 | C67: R | D67: LANTZVILLE RD - @ Stop | E67: 3.6 | G67: 144.7 | H67: 3 | I67: R | J67: LANTZVILLE RD - @ Stop | K67: 3.6
A68: 148.3 | B68: 6.6 | C68: VR | D68: MERGE ONTO HWY 19 N-No Sign | E68: 6 | G68: 148.3 | H68: 6.6 | I68: VR | J68: MERGE ONTO HWY 19 N-No Sign | K68: 6
A69: 154.3 | B69: 12.6 | C69: R | D69: NORTHWEST BAY RD. | E69: =A70-A69 -> 9.6 | G69: 154.3 | H69: 12.6 | I69: R | J69: NORTHWEST BAY RD. | K69: =G70-G69 -> 9.6
A70: 163.9 | B70: 22.2 | C70: L | D70: TOWARDS RTE 19A N | E70: 0.1 | G70: 163.9 | H70: 22.2 | I70: L | J70: TOWARDS RTE 19A N | K70: 0.1
A71: 164 | B71: 22.3 | C71: R | D71: HWY 19A N. @ lights | E71: 76.1 | G71: 164 | H71: 22.3 | I71: R | J71: HWY 19A N. @ lights | K71: 76.1
A72: 240.1 | B72: 98.4 | C72: R | D72: HWY 19A N. @ lights Courtenay | E72: 0.1 | G72: 240.1 | H72: 98.4 | I72: R | J72: HWY 19A N. @ lights Courtenay | K72: 0.1
A73: 240.2 | B73: 98.5 | C73: SO | D73: CAUTION! STEEL GRID BRIDGE | E73: 0.1 | G73: 240.2 | H73: 98.5 | I73: SO | J73: CAUTION! STEEL GRID BRIDGE | K73: 0.1
A74: 240.3 | B74: 98.6 | C74: R | D74: COMOX RD. @ lights => Comox | E74: 5.1 | G74: 240.3 | H74: 98.6 | I74: R | J74: COMOX RD. @ lights => Comox | K74: 5.1
A75: 245.4 | B75: =A75-$A$75 -> 0 | D75: CONTROL #5--COMOX YOUR CHOICE | E75: 0.5 | G75: 245.4 | H75: =G75-$A$75 -> 0 | J75: CONTROL #5--COMOX YOUR CHOICE | K75: 0.5
A76: 245.9 | B76: =A76-$A$75 -> 0.5 | C76: L | D76: PRICHARD RD | E76: 3.5 | G76: 245.9 | H76: =G76-$A$75 -> 0.5 | I76: L | J76: PRICHARD RD | K76: 3.5
A77: 249.4 | B77: 4 | C77: SO | D77: BECOME MILITARY ROW | E77: 1.6 | G77: 249.4 | H77: 4 | I77: SO | J77: BECOME MILITARY ROW | K77: 1.6
A78: 251 | B78: 5.6 | C78: SO | D78: BECOMES LITTLE RIVER RD | E78: 1.9 | G78: 251 | H78: 5.6 | I78: SO | J78: BECOMES LITTLE RIVER RD | K78: 1.9
A79: 252.9 | B79: 7.5 | C79: L | D79: Stay on LITTLE RIVER RD | E79: 0.5 | G79: 252.9 | H79: 7.5 | I79: L | J79: Stay on LITTLE RIVER RD | K79: 0.5
A80: 253.4 | B80: 8 | C80: L | D80: WILKINSON | E80: 1.1 | G80: 253.4 | H80: 8 | I80: L | J80: WILKINSON | K80: 1.1
A81: 254.5 | B81: 9.1 | C81: L | D81: ELLENOR RD @ Stop bc Anderton | E81: 2.9 | G81: 254.5 | H81: 9.1 | I81: L | J81: ELLENOR RD @ Stop bc Anderton | K81: 2.9
A82: 257.4 | B82: 12 | C82: R | D82: RYAN RD @ Lights | E82: 1.8 | G82: 257.4 | H82: 12 | I82: R | J82: RYAN RD @ Lights | K82: 1.8
A83: 259.2 | B83: 13.8 | C83: R | D83: LERWICK RD @ Lights => C.River | E83: =A85-A83 -> 3.2 | G83: 259.2 | H83: 13.8 | I83: R | J83: LERWICK RD @ Lights => C.River | K83: =G85-G83 -> 3.2
C84: SO | D84: VETERAN'S MEMORIAL PKWY | I84: SO | J84: VETERAN'S MEMORIAL PKWY
A85: 262.4 | B85: 17 | C85: R | D85: HWY #19A N @ lights | E85: =A86-A85 -> 42.2 | G85: 262.4 | H85: 17 | I85: R | J85: HWY #19A N @ lights | K85: =G86-G85 -> 42.2
A86: 304.6 | B86: 59.2 | C86: R | D86: HWY #19A @ Lights - Campbell R. | E86: 2.7 | G86: 304.6 | H86: 59.2 | I86: R | J86: HWY #19A @ Lights - Campbell R. | K86: 2.7
A87: 307.3 | B87: =A87-$A$87 -> 0 | C87: R | D87: CONTROL #6 - CAMPBELL RIVER MOHAWK GAS STATION | E87: 0 | G87: 307.3 | H87: =G87-$A$87 -> 0 | I87: R | J87: CONTROL #6 - CAMPBELL RIVER MOHAWK GAS STATION | K87: 0
A88: 307.3 | B88: =A88-$A$87 -> 0 | C88: SO | D88: HWY 19A N | E88: 0.2 | G88: 307.3 | H88: =G88-$A$87 -> 0 | I88: SO | J88: HWY 19A N | K88: 0.2
A89: 307.5 | B89: 0.2 | C89: SO | D89: at 1st lights - NOT to Port Hardy!! | E89: 0.2 | G89: 307.5 | H89: 0.2 | I89: SO | J89: at 1st lights - NOT to Port Hardy!! | K89: 0.2
A90: 307.7 | B90: 0.4 | C90: SO | D90: HWY 28 @ Lights => Gold River | E90: 41.3 | G90: 307.7 | H90: 0.4 | I90: SO | J90: HWY 28 @ Lights => Gold River | K90: 41.3
A91: 349 | B91: 41.7 | C91: SO | D91: Strathcona Park Lodge on Right | E91: 6.5 | G91: 349 | H91: 41.7 | I91: SO | J91: Strathcona Park Lodge on Right | K91: 6.5
A92: 355.5 | B92: 48.2 | C92: R | D92: Stay on HWY 28 - cross bridge | E92: 39.9 | G92: 355.5 | H92: 48.2 | I92: R | J92: Stay on HWY 28 - cross bridge | K92: 39.9
A93: 395.4 | B93: 88.1 | C93: L | D93: MUCHALET DRIVE - Gold River | E93: 0.5 | G93: 395.4 | H93: 88.1 | I93: L | J93: MUCHALET DRIVE - Gold River | K93: 0.5
A94: 395.9 | B94: 88.6 | C94: R | D94: NIMPKISH DRIVE | E94: 0.1 | G94: 395.9 | H94: 88.6 | I94: R | J94: NIMPKISH DRIVE | K94: 0.1
A95: 396 | B95: =A95-$A$95 -> 0 | C95: L | D95: CONTROL #7--GOLD RIVER GOLD RIVER CHALET PARKING ANSWER QUEST. - CNTRL CARD | E95: 0 | G95: 396 | H95: =G95-$A$95 -> 0 | I95: L | J95: CONTROL #7--GOLD RIVER GOLD RIVER CHALET PARKING ANSWER QUEST. - CNTRL CARD | K95: 0
A96: 396 | B96: =A96-$A$95 -> 0 | C96: U | D96: RETURN TO CAMPELL RIVER | E96: 0.1 | G96: 396 | H96: =G96-$A$95 -> 0 | I96: U | J96: RETURN TO CAMPELL RIVER | K96: 0.1
A97: 396.1 | B97: 0.1 | C97: R | D97: NIMPKISH DRIVE | E97: 0.1 | G97: 396.1 | H97: 0.1 | I97: R | J97: NIMPKISH DRIVE | K97: 0.1
A98: 396.2 | B98: 0.2 | C98: L | D98: MUCHALET DRIVE @ Stop | E98: 0.5 | G98: 396.2 | H98: 0.2 | I98: L | J98: MUCHALET DRIVE @ Stop | K98: 0.5
A99: 396.7 | B99: 0.7 | C99: R | D99: GOLD RIVER RD/HWY 28 @ Stop | E99: 39.6 | G99: 396.7 | H99: 0.7 | I99: R | J99: GOLD RIVER RD/HWY 28 @ Stop | K99: 39.6
A100: 436.3 | B100: 40.3 | C100: L | D100: HWY 28 @ Stop - after bridge | E100: 6.7 | G100: 436.3 | H100: 40.3 | I100: L | J100: HWY 28 @ Stop - after bridge | K100: 6.7
A101: 443 | B101: 47 | C101: SO | D101: Strathcona Park Lodge on Left | E101: 41.1 | G101: 443 | H101: 47 | I101: SO | J101: Strathcona Park Lodge on Left | K101: 41.1
A102: 484.1 | B102: 88.1 | C102: SO | D102: HWY #19A south to Downtown | E102: 0.2 | G102: 484.1 | H102: 88.1 | I102: SO | J102: HWY #19A south to Downtown | K102: 0.2
A103: 484.3 | B103: 88.3 | C103: SO | D103: HWY #19A - 2nd set of lights | E103: 0.2 | G103: 484.3 | H103: 88.3 | I103: SO | J103: HWY #19A - 2nd set of lights | K103: 0.2
A104: 484.5 | B104: =A104-$A$104 -> 0 | C104: L | D104: CONTROL #8--CAMPBELL RIVER MOHAWK GAS STATION | E104: 0 | G104: 484.5 | H104: =G104-$A$104 -> 0 | I104: L | J104: CONTROL #8--CAMPBELL RIVER MOHAWK GAS STATION | K104: 0
A105: 484.5 | B105: =A105-$A$104 -> 0 | C105: L | D105: Continue on HWY 19A S | E105: 2.7 | G105: 484.5 | H105: =G105-$A$104 -> 0 | I105: L | J105: Continue on HWY 19A S | K105: 2.7
A106: 487.2 | B106: 2.7 | C106: L | D106: HWY 19A S @ Lights | E106: 33.9 | G106: 487.2 | H106: 2.7 | I106: L | J106: HWY 19A S @ Lights | K106: 33.9
A107: 521.1 | B107: 36.6 | C107: L | D107: COLEMAN RD | E107: 4.2 | G107: 521.1 | H107: 36.6 | I107: L | J107: COLEMAN RD | K107: 4.2
A108: 525.3 | B108: 40.8 | C108: R | D108: BATES RD @ Stop => Airport | E108: 3.8 | G108: 525.3 | H108: 40.8 | I108: R | J108: BATES RD @ Stop => Airport | K108: 3.8
A109: 529.1 | B109: 44.6 | C109: R | D109: WAVELAND RD. => Airport | E109: 3.8 | G109: 529.1 | H109: 44.6 | I109: R | J109: WAVELAND RD. => Airport | K109: 3.8
A110: 532.9 | B110: 48.4 | C110: L | D110: ELLENOR RD @ Stop | E110: 1.3 | G110: 532.9 | H110: 48.4 | I110: L | J110: ELLENOR RD @ Stop | K110: 1.3
A111: 534.2 | B111: 49.7 | C111: R | D111: WILKINSON | E111: 1.1 | G111: 534.2 | H111: 49.7 | I111: R | J111: WILKINSON | K111: 1.1
A112: 535.3 | B112: 50.8 | C112: R | D112: LITTLE RIVER RD | E112: 0.5 | G112: 535.3 | H112: 50.8 | I112: R | J112: LITTLE RIVER RD | K112: 0.5
A113: 535.8 | B113: 51.3 | C113: R | D113: Stay on LITTLE RIVER RD | E113: 1.9 | G113: 535.8 | H113: 51.3 | I113: R | J113: Stay on LITTLE RIVER RD | K113: 1.9
A114: 537.7 | B114: 53.2 | C114: SO | D114: MILITARY ROW @ Stop | E114: 1.6 | G114: 537.7 | H114: 53.2 | I114: SO | J114: MILITARY ROW @ Stop | K114: 1.6
A115: 539.3 | B115: 54.8 | C115: SO | D115: MILITARY ROW bc Pritchard Rd. | E115: 1.6 | G115: 539.3 | H115: 54.8 | I115: SO | J115: MILITARY ROW bc Pritchard Rd. | K115: 1.6
A116: 540.9 | B116: 56.4 | C116: SO | D116: PRITCHARD RD @ Stop | E116: 1.8 | G116: 540.9 | H116: 56.4 | I116: SO | J116: PRITCHARD RD @ Stop | K116: 1.8
A117: 542.7 | B117: 58.2 | C117: VR | D117: COMOX AVE | E117: 0.3 | G117: 542.7 | H117: 58.2 | I117: VR | J117: COMOX AVE | K117: 0.3
A118: 543 | B118: =A118-$A$118 -> 0 | D118: CONTROL #9 - COMOX YOUR CHOICE or ANSWER QUEST. - CNTRL CARD | E118: 5.3 | G118: 543 | H118: =G118-$A$118 -> 0 | J118: CONTROL #9 - COMOX YOUR CHOICE or ANSWER QUEST. - CNTRL CARD | K118: 5.3
A119: 548.3 | B119: 5.3 | C119: L | D119: HWY 19A S @ Lights => Pksville | E119: 0.1 | G119: 548.3 | H119: 5.3 | I119: L | J119: HWY 19A S @ Lights => Pksville | K119: 0.1
A120: 548.4 | B120: 5.4 | C120: CO | D120: CAUTION!! STEEL GRID BRIDGE | E120: 0.2 | G120: 548.4 | H120: 5.4 | I120: CO | J120: CAUTION!! STEEL GRID BRIDGE | K120: 0.2
A121: 548.6 | B121: 5.6 | C121: L | D121: HWY 19A S @ Lights | E121: 1.5 | G121: 548.6 | H121: 5.6 | I121: L | J121: HWY 19A S @ Lights | K121: 1.5
A122: 550.1 | B122: 7.1 | C122: R | D122: 29th ST => Cumberland | E122: 5.5 | G122: 550.1 | H122: 7.1 | I122: R | J122: 29th ST => Cumberland | K122: 5.5
A123: 555.6 | B123: 12.6 | C123: SO | D123: continue on to CUMBERLAND | E123: 1.6 | G123: 555.6 | H123: 12.6 | I123: SO | J123: continue on to CUMBERLAND | K123: 1.6
A124: 557.2 | B124: =A124-$A$124 -> 0 | C124: R | D124: CONTROL #10 - CUMBERLAND Cumberland Rd + Bevan ANSWER QUEST. - CNTRL CARD | E124: 0.3 | G124: 557.2 | H124: =G124-$A$124 -> 0 | I124: R | J124: CONTROL #10 - CUMBERLAND Cumberland Rd + Bevan ANSWER QUEST. - CNTRL CARD | K124: 0.3
A125: 557.5 | B125: =A125-$A$124 -> 0.3 | C125: VL | D125: FOURTH ST @ Peace Park | E125: 0.5 | G125: 557.5 | H125: =G125-$A$124 -> 0.3 | I125: VL | J125: FOURTH ST @ Peace Park | K125: 0.5
A126: 558 | B126: 0.8 | C126: L | D126: DUNSMUIR AVE | E126: 6.7 | G126: 558 | H126: 0.8 | I126: L | J126: DUNSMUIR AVE | K126: 6.7
A127: 564.7 | B127: 7.5 | C127: R | D127: HWY 19A S @ Lights=>Union Bay | E127: 55.4 | G127: 564.7 | H127: 7.5 | I127: R | J127: HWY 19A S @ Lights=>Union Bay | K127: 55.4
A128: 620.1 | B128: 62.9 | C128: R | D128: MEMORIAL @ Shell Station | E128: 0.9 | G128: 620.1 | H128: 62.9 | I128: R | J128: MEMORIAL @ Shell Station | K128: 0.9
A129: 621 | B129: 63.8 | C129: SO | D129: Courtyard Patio Café - Good pie! | E129: 2.8 | G129: 621 | H129: 63.8 | I129: SO | J129: Courtyard Patio Café - Good pie! | K129: 2.8
A130: 623.8 | B130: 66.6 | C130: SO | D130: HWY 4W => Port Alberni | E130: 1 | G130: 623.8 | H130: 66.6 | I130: SO | J130: HWY 4W => Port Alberni | K130: 1
A131: 624.8 | B131: 67.6 | C131: R | D131: HILLIERS RD S | E131: 4.8 | G131: 624.8 | H131: 67.6 | I131: R | J131: HILLIERS RD S | K131: 4.8
A132: 629.6 | B132: 72.4 | C132: R | D132: HWY 4W @ T | E132: 29.2 | G132: 629.6 | H132: 72.4 | I132: R | J132: HWY 4W @ T | K132: 29.2
A133: 658.8 | B133: 101.6 | C133: VR | D133: to stay on HWY 4W | E133: 4.1 | G133: 658.8 | H133: 101.6 | I133: VR | J133: to stay on HWY 4W | K133: 4.1
A134: 662.9 | B134: =A134-$A$134 -> 0 | C134: L | D134: CONTROL #11 - PORT ALBERNI 7-11 CONVENIENCE STORE | E134: =A135-A134 -> 0.1 | G134: 662.9 | H134: =G134-$A$134 -> 0 | I134: L | J134: CONTROL #11 - PORT ALBERNI 7-11 CONVENIENCE STORE | K134: =G135-G134 -> 0.1
A135: 663 | B135: =A135-$A$134 -> 0.1 | C135: U | D135: Rt. Onto Johnston Rd/HWY 4E | E135: 0 | G135: 663 | H135: =G135-$A$134 -> 0.1 | I135: U | J135: Rt. Onto Johnston Rd/HWY 4E | K135: 0
A136: 663 | B136: =A136-$A$134 -> 0.1 | D136: Towards Parksville | E136: 34 | G136: 663 | H136: =G136-$A$134 -> 0.1 | J136: Towards Parksville | K136: 34
A137: 697 | B137: 34.1 | C137: R | D137: PRATT RD | E137: 2 | G137: 697 | H137: 34.1 | I137: R | J137: PRATT RD | K137: 2
A138: 699 | B138: 36.1 | C138: L | D138: GRAFTON AVE | E138: 7.3 | G138: 699 | H138: 36.1 | I138: L | J138: GRAFTON AVE | K138: 7.3
A139: 706.3 | B139: 43.4 | C139: L | D139: ERRINGTON RD | E139: 2 | G139: 706.3 | H139: 43.4 | I139: L | J139: ERRINGTON RD | K139: 2
A140: 708.3 | B140: 45.4 | C140: R | D140: ALBERNI HWY | E140: 2.6 | G140: 708.3 | H140: 45.4 | I140: R | J140: ALBERNI HWY | K140: 2.6
A141: 710.9 | B141: 48 | C141: R | D141: HWY 19 S =>Nanaimo | E141: 5.5 | G141: 710.9 | H141: 48 | I141: R | J141: HWY 19 S =>Nanaimo | K141: 5.5
A142: 716.4 | B142: 53.5 | C142: R | D142: EXIT 46 TO HWY 19A N | E142: 0.6 | G142: 716.4 | H142: 53.5 | I142: R | J142: EXIT 46 TO HWY 19A N | K142: 0.6
A143: 717 | B143: 54.1 | C143: L | D143: HWY 19A N @ Stop => Pksville | E143: 1 | G143: 717 | H143: 54.1 | I143: L | J143: HWY 19A N @ Stop => Pksville | K143: 1
A144: 718 | B144: 55.1 | C144: R | D144: FRANKLIN'S GULL/NW BAY-lights | E144: 0.1 | G144: 718 | H144: 55.1 | I144: R | J144: FRANKLIN'S GULL/NW BAY-lights | K144: 0.1
A145: 718.1 | B145: 55.2 | C145: R | D145: NORTH WEST BAY RD | E145: 9.6 | G145: 718.1 | H145: 55.2 | I145: R | J145: NORTH WEST BAY RD | K145: 9.6
A146: 727.7 | B146: 64.8 | C146: L | D146: ISLAND HWY 19S =>Nanaimo | E146: 7.6 | G146: 727.7 | H146: 64.8 | I146: L | J146: ISLAND HWY 19S =>Nanaimo | K146: 7.6
A147: 735.3 | B147: 72.4 | C147: R | D147: SUPERIOR RD | E147: 0.3 | G147: 735.3 | H147: 72.4 | I147: R | J147: SUPERIOR RD | K147: 0.3
A148: 735.6 | B148: 72.7 | C148: L | D148: VANDENHOEK | E148: 0.1 | G148: 735.6 | H148: 72.7 | I148: L | J148: VANDENHOEK | K148: 0.1
A149: 735.7 | B149: 72.8 | C149: L | D149: HARBY RD W | E149: =A150-A149 -> 1.3 | G149: 735.7 | H149: 72.8 | I149: L | J149: HARBY RD W | K149: =G150-G149 -> 1.3
A150: 737 | B150: 74.1 | C150: SO | D150: Becomes PHILIP RD | E150: 0.5 | G150: 737 | H150: 74.1 | I150: SO | J150: Becomes PHILIP RD | K150: 0.5
A151: 737.5 | B151: 74.6 | C151: L | D151: AULDS RD | E151: 0.1 | G151: 737.5 | H151: 74.6 | I151: L | J151: AULDS RD | K151: 0.1
A152: 737.6 | B152: 74.7 | C152: R | D152: To Stay on AULDS RD | E152: 2.7 | G152: 737.6 | H152: 74.7 | I152: R | J152: To Stay on AULDS RD | K152: 2.7
A153: 740.3 | B153: 77.4 | C153: SO | D153: Cross NANAIMO PKWY/HWY 19 | E153: 0.3 | G153: 740.3 | H153: 77.4 | I153: SO | J153: Cross NANAIMO PKWY/HWY 19 | K153: 0.3
A154: 740.6 | B154: 77.7 | C154: R | D154: METRAL DRIVE | E154: 1.3 | G154: 740.6 | H154: 77.7 | I154: R | J154: METRAL DRIVE | K154: 1.3
A155: 741.9 | B155: 79 | C155: R | D155: DOUMONT RD | E155: 4.3 | G155: 741.9 | H155: 79 | I155: R | J155: DOUMONT RD | K155: 4.3
A156: 746.2 | B156: 83.3 | C156: L | D156: BIGGS RD @ Stop | E156: 3.5 | G156: 746.2 | H156: 83.3 | I156: L | J156: BIGGS RD @ Stop | K156: 3.5
A157: 749.7 | B157: 86.8 | C157: R | D157: JINGLE POT RD | E157: 8.1 | G157: 749.7 | H157: 86.8 | I157: R | J157: JINGLE POT RD | K157: 8.1
A158: 757.8 | B158: 94.9 | C158: SO | D158: Cross NANAIMO PKWY/HWY 19 | E158: 0.7 | G158: 757.8 | H158: 94.9 | I158: SO | J158: Cross NANAIMO PKWY/HWY 19 | K158: 0.7
A159: 758.5 | B159: 95.6 | C159: VR | D159: JINGLE POT RD becomes THIRD | E159: 1.1 | G159: 758.5 | H159: 95.6 | I159: VR | J159: JINGLE POT RD becomes THIRD | K159: 1.1
A160: 759.6 | B160: 96.7 | C160: R | D160: WAKESIAH AVE | E160: 1.2 | G160: 759.6 | H160: 96.7 | I160: R | J160: WAKESIAH AVE | K160: 1.2
A161: 760.8 | B161: 97.9 | C161: L | D161: SIXTH | E161: 0.9 | G161: 760.8 | H161: 97.9 | I161: L | J161: SIXTH | K161: 0.9
A162: 761.7 | B162: 98.8 | C162: R | D162: BRUCE AVE | E162: 1.6 | G162: 761.7 | H162: 98.8 | I162: R | J162: BRUCE AVE | K162: 1.6
A163: 763.3 | B163: 100.4 | C163: VL | D163: TENTH AVE | E163: 2.4 | G163: 763.3 | H163: 100.4 | I163: VL | J163: TENTH AVE | K163: 2.4
A164: 765.7 | B164: =A164-$A$164 -> 0 | C164: R | D164: CONTROL #12 - NANAIMO MOHAWK GAS STATION | E164: 0 | G164: 765.7 | H164: =G164-$A$164 -> 0 | I164: R | J164: CONTROL #12 - NANAIMO MOHAWK GAS STATION | K164: 0
A165: 765.7 | B165: =A165-$A$164 -> 0 | C165: R | D165: Right out of Mohawk | E165: 0.1 | G165: 765.7 | H165: =G165-$A$164 -> 0 | I165: R | J165: Right out of Mohawk | K165: 0.1
A166: 765.8 | B166: 0.1 | C166: R | D166: TRANS CANADA HWY 1 @Lights | E166: 0.5 | G166: 765.8 | H166: 0.1 | I166: R | J166: TRANS CANADA HWY 1 @Lights | K166: 0.5
A167: 766.3 | B167: 0.6 | C167: L | D167: LEFT LANE FOR CEDAR RD | E167: 0.2 | G167: 766.3 | H167: 0.6 | I167: L | J167: LEFT LANE FOR CEDAR RD | K167: 0.2
A168: 766.5 | B168: 0.8 | C168: L | D168: CEDAR RD @ Lights | E168: 3 | G168: 766.5 | H168: 0.8 | I168: L | J168: CEDAR RD @ Lights | K168: 3
A169: 769.5 | B169: 3.8 | C169: R | D169: Stay on CEDAR RD -after bridge! | E169: 11.9 | G169: 769.5 | H169: 3.8 | I169: R | J169: Stay on CEDAR RD -after bridge! | K169: 11.9
A170: 781.4 | B170: 15.7 | C170: L | D170: HWY 1 @ lights - toward Victoria | E170: 30.9 | G170: 781.4 | H170: 15.7 | I170: L | J170: HWY 1 @ lights - toward Victoria | K170: 30.9
A171: 812.3 | B171: 46.6 | C171: R | D171: DRINKWATER RD - Tim H. on rt. | E171: 1.5 | G171: 812.3 | H171: 46.6 | I171: R | J171: DRINKWATER RD - Tim H. on rt. | K171: 1.5
A172: 813.8 | B172: 48.1 | C172: L | D172: SOMENOS RD | E172: 1.2 | G172: 813.8 | H172: 48.1 | I172: L | J172: SOMENOS RD | K172: 1.2
A173: 815 | B173: 49.3 | C173: R | D173: COWICHAN LAKE RD @ Rndabt. | E173: 1.9 | G173: 815 | H173: 49.3 | I173: R | J173: COWICHAN LAKE RD @ Rndabt. | K173: 1.9
A174: 816.9 | B174: 51.2 | C174: L | D174: COWICHAN LAKE RD | E174: 16.4 | G174: 816.9 | H174: 51.2 | I174: L | J174: COWICHAN LAKE RD | K174: 16.4
A175: 833.3 | B175: 67.6 | C175: SO | D175: Cross SKUTZ FALLS RD @ Stop | E175: 5.9 | G175: 833.3 | H175: 67.6 | I175: SO | J175: Cross SKUTZ FALLS RD @ Stop | K175: 5.9
A176: 839.2 | B176: 73.5 | C176: L | D176: GREENDALE RD | E176: 1.6 | G176: 839.2 | H176: 73.5 | I176: L | J176: GREENDALE RD | K176: 1.6
A177: 840.8 | B177: 75.1 | C177: L | D177: COWICHAN LAKE RD @ T-Stop | E177: 0.2 | G177: 840.8 | H177: 75.1 | I177: L | J177: COWICHAN LAKE RD @ T-Stop | K177: 0.2
A178: 841 | B178: =A178-$A$178 -> 0 | C178: R | D178: CONTROL #13-LAKE COWICHAN ESSO STATION @ MacDONALD | E178: 0 | G178: 841 | H178: =G178-$A$178 -> 0 | I178: R | J178: CONTROL #13-LAKE COWICHAN ESSO STATION @ MacDONALD | K178: 0
A179: 841 | B179: =A179-$A$178 -> 0 | C179: U | D179: LEFT ONTO COWICHAN LAKE RD | E179: 0.2 | G179: 841 | H179: =G179-$A$178 -> 0 | I179: U | J179: LEFT ONTO COWICHAN LAKE RD | K179: 0.2
A180: 841.2 | B180: 0.2 | C180: R | D180: COWICHN LAKE RD-2nd right turn | E180: 7.4 | G180: 841.2 | H180: 0.2 | I180: R | J180: COWICHN LAKE RD-2nd right turn | K180: 7.4
A181: 848.6 | B181: 7.6 | C181: SO | D181: Cross SKUTZ FALLS RD @ Stop | E181: 16.4 | G181: 848.6 | H181: 7.6 | I181: SO | J181: Cross SKUTZ FALLS RD @ Stop | K181: 16.4
A182: 865 | B182: 24 | C182: R | D182: TANSOR/COWICHAN LAKE RD | E182: 1.8 | G182: 865 | H182: 24 | I182: R | J182: TANSOR/COWICHAN LAKE RD | K182: 1.8
A183: 866.8 | B183: 25.8 | C183: L | D183: SOMENOS RD @ Rndabout | E183: 1.3 | G183: 866.8 | H183: 25.8 | I183: L | J183: SOMENOS RD @ Rndabout | K183: 1.3
A184: 868.1 | B184: 27.1 | C184: R | D184: DRINKWATER RD @ graveyard | E184: =A186-A184 -> 1.6 | G184: 868.1 | H184: 27.1 | I184: R | J184: DRINKWATER RD @ graveyard | K184: =G186-G184 -> 1.6
C185: SO | D185: cross Trans Canada Hwy 1 @ light | I185: SO | J185: cross Trans Canada Hwy 1 @ light
A186: 869.7 | B186: 28.7 | C186: L | D186: BELL MCKINNON RD. Don't Miss! | E186: 1.6 | G186: 869.7 | H186: 28.7 | I186: L | J186: BELL MCKINNON RD. Don't Miss! | K186: 1.6
A187: 871.3 | B187: 30.3 | C187: SO | D187: stay on BELL MCKINNON | E187: 3.7 | G187: 871.3 | H187: 30.3 | I187: SO | J187: stay on BELL MCKINNON | K187: 3.7
A188: 875 | B188: 34 | C188: R | D188: WESTHOLME RD @ Stop | E188: 3 | G188: 875 | H188: 34 | I188: R | J188: WESTHOLME RD @ Stop | K188: 3
A189: 878 | B189: 37 | C189: SO | D189: becomes CHEMAINUS RD | E189: 1.7 | G189: 878 | H189: 37 | I189: SO | J189: becomes CHEMAINUS RD | K189: 1.7
A190: 879.7 | B190: 38.7 | C190: R | D190: CROFTON RD | E190: 3.7 | G190: 879.7 | H190: 38.7 | I190: R | J190: CROFTON RD | K190: 3.7
A191: 883.4 | B191: 42.4 | C191: R | D191: YORK AVE/OSBORNE BAY RD | E191: 5.2 | G191: 883.4 | H191: 42.4 | I191: R | J191: YORK AVE/OSBORNE BAY RD | K191: 5.2
A192: 888.6 | B192: 47.6 | C192: L | D192: HERD RD | E192: 2.8 | G192: 888.6 | H192: 47.6 | I192: L | J192: HERD RD | K192: 2.8
A193: 891.4 | B193: 50.4 | C193: R | D193: MAPLE BAY RD =>Duncan | E193: 6 | G193: 891.4 | H193: 50.4 | I193: R | J193: MAPLE BAY RD =>Duncan | K193: 6
A194: 897.4 | B194: 56.4 | C194: L | D194: TZOUHALEM -no sign- roundabout | E194: 0.2 | G194: 897.4 | H194: 56.4 | I194: L | J194: TZOUHALEM -no sign- roundabout | K194: 0.2
A195: 897.6 | B195: 56.6 | C195: SO | D195: Cowichan Lodge on left | E195: 4.9 | G195: 897.6 | H195: 56.6 | I195: SO | J195: Cowichan Lodge on left | K195: 4.9
A196: 902.5 | B196: 61.5 | C196: SO | D196: COWICHAN BAY RD @ Stop | E196: 5.8 | G196: 902.5 | H196: 61.5 | I196: SO | J196: COWICHAN BAY RD @ Stop | K196: 5.8
A197: 908.3 | B197: 67.3 | C197: L | D197: TELEGRAPH RD -School on left | E197: 8.7 | G197: 908.3 | H197: 67.3 | I197: L | J197: TELEGRAPH RD -School on left | K197: 8.7
A198: 917 | B198: 76 | C198: R | D198: KILMALU RD @ T-Stop | E198: 0.6 | G198: 917 | H198: 76 | I198: R | J198: KILMALU RD @ T-Stop | K198: 0.6
A199: 917.6 | B199: 76.6 | C199: L | D199: TRANS CANADA HWY 1 @Lights | E199: 0.8 | G199: 917.6 | H199: 76.6 | I199: L | J199: TRANS CANADA HWY 1 @Lights | K199: 0.8
A200: 918.4 | B200: 77.4 | C200: R | D200: SHAWNIGAN/MILL BAY RD -lights | E200: 5.3 | G200: 918.4 | H200: 77.4 | I200: R | J200: SHAWNIGAN/MILL BAY RD -lights | K200: 5.3
... 49 more rows

Sheet Web results
A1: =Brevet_Number -> VI1000B
A2: RIDER | D2: TIME
A3: =#REF! ->  | B3: =#REF! ->  | D3: =#REF! ->  | E3: =#REF! -> 
A7: Time is in hours and minutes.
A8: l includes 1/2 hour penalty - no lights
A9: f includes 1/2 hour penalty - no fenders
A10: e rode 1 week early
A11: d rode 1 week late

Sheet Sheet1
